Workbook

Sheet Orçamentária
A1: Linha de vida - Anexo I
A2: PLANILHA ORÇAMENTÁRIA
A5: Item | B5: Grande Área | C5: Categoria | D5: DISCRIMINAÇÃO | E5: UN | F5: QUANT. TOTAL | G5: PREÇO UNITÁRIO | H5: CUSTO DIRETO | I5: BDI (%) | J5: PREÇO UNITÁRIO COM BDI | K5: CUSTO TOTAL
A6: SF-00001 | B6: Serviços de Apoio | C6: Serviços Técnicos | D6: Engenheiro(a) /Arquiteto(a) júnior | E6: hh | F6: 45 | G6: =OFFSET(INDEX(Composições!A:K,MATCH(Orçamentária!A6,Composições!A:A,0),11),2,0) -> 69.16 | H6: =IF(ISNUMBER(G6),ROUND(F6*G6,2),"-") -> 3112.2 | I6: =BDI!$C$17 -> 0.2636 | J6: =IF(ISNUMBER(G6),ROUND(G6*(1+I6),2),0) -> 87.39 | K6: =ROUND(J6*F6,2) -> 3932.55
A7: SF-00003 | B7: Serviços de Apoio | C7: Serviços Técnicos | D7: Planejamento físico-financeiro | E7: un | F7: 1 | G7: =OFFSET(INDEX(Composições!A:K,MATCH(Orçamentária!A7,Composições!A:A,0),11),2,0) -> 1257.12 | H7: =IF(ISNUMBER(G7),ROUND(F7*G7,2),"-") -> 1257.12 | I7: =BDI!$C$17 -> 0.2636 | J7: =IF(ISNUMBER(G7),ROUND(G7*(1+I7),2),0) -> 1588.5 | K7: =ROUND(J7*F7,2) -> 1588.5
A8: SF-00004 | B8: Serviços de Apoio | C8: Serviços Técnicos | D8: Projetos de segurança do trabalho | E8: un | F8: 1 | G8: =OFFSET(INDEX(Composições!A:K,MATCH(Orçamentária!A8,Composições!A:A,0),11),2,0) -> 1797.9 | H8: 1797.9 | I8: =BDI!$C$17 -> 0.2636 | J8: 2271.83 | K8: 2271.83
A9: SF-00045 | B9: Serviços de Apoio | C9: Serviços Preliminares | D9: Remoção de vidro comum | E9: m2 | F9: 145 | G9: =OFFSET(INDEX(Composições!A:K,MATCH(Orçamentária!A9,Composições!A:A,0),11),2,0) -> 11.83 | H9: =IF(ISNUMBER(G9),ROUND(F9*G9,2),"-") -> 1715.35 | I9: =BDI!$C$17 -> 0.2636 | J9: =IF(ISNUMBER(G9),ROUND(G9*(1+I9),2),0) -> 14.95 | K9: =ROUND(J9*F9,2) -> 2167.75
A10: SF-00051 | B10: Serviços de Apoio | C10: Segurança do Trabalho | D10: Corda de poliamida 12 mm tipo bombeiro, para trabalho em altura | E10: m | F10: 150 | G10: =OFFSET(INDEX(Composições!A:K,MATCH(Orçamentária!A10,Composições!A:A,0),11),2,0) -> 4.44 | H10: 666 | I10: =BDI!$C$17 -> 0.2636 | J10: 5.61 | K10: 841.5
A11: SF-00155 | B11: Civil | C11: Vidro Comum | D11: Instalação de vidro reaproveitado | E11: m2 | F11: 145 | G11: =OFFSET(INDEX(Composições!A:K,MATCH(Orçamentária!A11,Composições!A:A,0),11),2,0) -> 17.77 | H11: 2576.65 | I11: =BDI!$C$17 -> 0.2636 | J11: 22.45 | K11: 3255.25
A12: SF-00158 | B12: Civil | C12: Vidro Comum | D12: Vidro liso comum transparente 6mm | E12: m2 | F12: 100 | G12: =OFFSET(INDEX(Composições!A:K,MATCH(Orçamentária!A12,Composições!A:A,0),11),2,0) -> 158.63 | H12: 15863 | I12: =BDI!$C$17 -> 0.2636 | J12: 200.44 | K12: 20044
A13: SF-00998 | B13: Serviços de Apoio | C13: Segurança do Trabalho | D13: Linha de vida horizontal em trilho | E13: pavimento | F13: 28 | G13: 27026.25 | H13: =IF(ISNUMBER(G13),ROUND(F13*G13,2),"-") -> 756735 | I13: 0 | J13: =IF(ISNUMBER(G13),ROUND(G13*(1+I13),2),0) -> 27026.25 | K13: 756735
A14: SF-01000 | B14: Ferramentas e Equipamentos | C14: Uso Geral | D14: Corda poliéster 8mm | E14: m | F14: 150 | G14: 0.97 | H14: 145.5 | I14: =BDI!$C$17 -> 0.2636 | J14: 1.23 | K14: =ROUND(J14*F14,2) -> 184.5
A15: CUSTO DIRETO TOTAL | H15: =SUBTOTAL(109,H6:H14) -> 783868.72 | K15: =SUBTOTAL(109,K6:K14) -> 791020.88
A16: CUSTO TOTAL DA LICITAÇÃO | H16: =K15 -> 791020.88

Sheet Composições
A1: Linha de vida - Anexo I
A2: COMPOSIÇÕES DE CUSTO UNITÁRIO
A4: ITEM | B4: DESCRIÇÃO | C4: CÓDIGO | D4: COMPOSIÇÃO | E4: C/MO/I | F4: DISCRIMINAÇÃO DA COMPOSIÇÃO | G4: UNIDADE | H4: COEFICIENTE | I4: CUSTO UNITÁRIO | J4: CUSTO TOTAL | K4: TOTAL DO SERVIÇO
A5: SF-00001 | B5: Engenheiro(a) /Arquiteto(a) júnior | C5: =IF(AND(F5<>"",#REF!=""),C4,IF(F5<>"",#REF!,"")) ->  | D5: =IF(C5<>"",INDEX(Orçamentária!A:K,MATCH(C5,Orçamentária!A:A,0),12),IF(AND(C5="",#REF!=""),"",#REF!)) ->  | E5: =IF(RIGHT(F5,27)="com encargos complementares","MO",IF(ISNUMBER(INDEX('Insumos Sinapi'!$A:$H,MATCH(#REF!,'Insumos Sinapi'!$H:$H,0),7)),"I",IF(OR(ISNUMBER(OFFSET(INDEX(#REF!,MATCH(F5,#REF!,0),12),2,0)),ISNUMBER(INDEX('Serviços Sinapi'!$A:$H,MATCH(#REF!,'Serviços Sinapi'!$I:$I,0),8))),"C",IF(ISTEXT(#REF!),"I","")))) ->  | G5: =Orçamentária!E6 -> hh | J5: =IF(ISNUMBER(I5),ROUND(H5*I5,2),"") -> 
C6: =IF(AND(F6<>"",A4=""),C5,IF(F6<>"",A4,"")) ->  | D6: =IF(C6<>"",INDEX(Orçamentária!A:K,MATCH(C6,Orçamentária!A:A,0),12),IF(AND(C6="",#REF!=""),"",#REF!)) ->  | E6: =IF(RIGHT(F6,27)="com encargos complementares","MO",IF(ISNUMBER(INDEX('Insumos Sinapi'!$A:$H,MATCH(#REF!,'Insumos Sinapi'!$H:$H,0),7)),"I",IF(OR(ISNUMBER(OFFSET(INDEX(#REF!,MATCH(F6,#REF!,0),12),2,0)),ISNUMBER(INDEX('Serviços Sinapi'!$A:$H,MATCH(#REF!,'Serviços Sinapi'!$I:$I,0),8))),"C",IF(ISTEXT(#REF!),"I","")))) ->  | J6: =IF(ISNUMBER(I6),ROUND(H6*I6,2),"") -> 
C7: SF-00001 | D7: =IF(C7<>"",INDEX(Orçamentária!A:K,MATCH(C7,Orçamentária!A:A,0),12),IF(AND(C7="",#REF!=""),"",#REF!)) ->  | E7: =IF(RIGHT(F7,27)="com encargos complementares","MO",IF(ISNUMBER(INDEX('Insumos Sinapi'!$A:$H,MATCH(#REF!,'Insumos Sinapi'!$H:$H,0),7)),"I",IF(OR(ISNUMBER(OFFSET(INDEX(#REF!,MATCH(F7,#REF!,0),12),2,0)),ISNUMBER(INDEX('Serviços Sinapi'!$A:$H,MATCH(#REF!,'Serviços Sinapi'!$I:$I,0),8))),"C",IF(ISTEXT(#REF!),"I","")))) -> MO | F7: Engenheiro civil de obra junior com encargos complementares | G7: h | H7: 1 | I7: 69.16 | J7: =IF(ISNUMBER(I7),ROUND(H7*I7,2),"") -> 69.16 | K7: =SUM(J7:J7) -> 69.16
D8: =IF(C8<>"",INDEX(Orçamentária!A:K,MATCH(C8,Orçamentária!A:A,0),12),IF(AND(C8="",#REF!=""),"",#REF!)) ->  | E8: =IF(RIGHT(F8,27)="com encargos complementares","MO",IF(ISNUMBER(INDEX('Insumos Sinapi'!$A:$H,MATCH(#REF!,'Insumos Sinapi'!$H:$H,0),7)),"I",IF(OR(ISNUMBER(OFFSET(INDEX(#REF!,MATCH(F8,#REF!,0),12),2,0)),ISNUMBER(INDEX('Serviços Sinapi'!$A:$H,MATCH(#REF!,'Serviços Sinapi'!$I:$I,0),8))),"C",IF(ISTEXT(#REF!),"I","")))) ->  | J8: =IF(ISNUMBER(I8),ROUND(H8*I8,2),"") -> 
A9: SF-00003 | B9: Planejamento físico-financeiro | D9: =IF(C9<>"",INDEX(Orçamentária!A:K,MATCH(C9,Orçamentária!A:A,0),12),IF(AND(C9="",#REF!=""),"",#REF!)) ->  | E9: =IF(RIGHT(F9,27)="com encargos complementares","MO",IF(ISNUMBER(INDEX('Insumos Sinapi'!$A:$H,MATCH(#REF!,'Insumos Sinapi'!$H:$H,0),7)),"I",IF(OR(ISNUMBER(OFFSET(INDEX(#REF!,MATCH(F9,#REF!,0),12),2,0)),ISNUMBER(INDEX('Serviços Sinapi'!$A:$H,MATCH(#REF!,'Serviços Sinapi'!$I:$I,0),8))),"C",IF(ISTEXT(#REF!),"I","")))) ->  | G9: =Orçamentária!E7 -> un | J9: =IF(ISNUMBER(I9),ROUND(H9*I9,2),"") -> 
D10: =IF(C10<>"",INDEX(Orçamentária!A:K,MATCH(C10,Orçamentária!A:A,0),12),IF(AND(C10="",#REF!=""),"",#REF!)) ->  | E10: =IF(RIGHT(F10,27)="com encargos complementares","MO",IF(ISNUMBER(INDEX('Insumos Sinapi'!$A:$H,MATCH(#REF!,'Insumos Sinapi'!$H:$H,0),7)),"I",IF(OR(ISNUMBER(OFFSET(INDEX(#REF!,MATCH(F10,#REF!,0),12),2,0)),ISNUMBER(INDEX('Serviços Sinapi'!$A:$H,MATCH(#REF!,'Serviços Sinapi'!$I:$I,0),8))),"C",IF(ISTEXT(#REF!),"I","")))) ->  | J10: =IF(ISNUMBER(I10),ROUND(H10*I10,2),"") -> 
C11: SF-00003 | D11: =IF(C11<>"",INDEX(Orçamentária!A:K,MATCH(C11,Orçamentária!A:A,0),12),IF(AND(C11="",#REF!=""),"",#REF!)) ->  | E11: =IF(RIGHT(F11,27)="com encargos complementares","MO",IF(ISNUMBER(INDEX('Insumos Sinapi'!$A:$H,MATCH(#REF!,'Insumos Sinapi'!$H:$H,0),7)),"I",IF(OR(ISNUMBER(OFFSET(INDEX(#REF!,MATCH(F11,#REF!,0),12),2,0)),ISNUMBER(INDEX('Serviços Sinapi'!$A:$H,MATCH(#REF!,'Serviços Sinapi'!$I:$I,0),8))),"C",IF(ISTEXT(#REF!),"I","")))) -> MO | F11: Engenheiro Civil de Obra Pleno com encargos complementares | G11: h | H11: 16 | I11: 78.57 | J11: =IF(ISNUMBER(I11),ROUND(H11*I11,2),"") -> 1257.12 | K11: =SUM(J11:J11) -> 1257.12
D12: =IF(C12<>"",INDEX(Orçamentária!A:K,MATCH(C12,Orçamentária!A:A,0),12),IF(AND(C12="",#REF!=""),"",#REF!)) ->  | E12: =IF(RIGHT(F12,27)="com encargos complementares","MO",IF(ISNUMBER(INDEX('Insumos Sinapi'!$A:$H,MATCH(#REF!,'Insumos Sinapi'!$H:$H,0),7)),"I",IF(OR(ISNUMBER(OFFSET(INDEX(#REF!,MATCH(F12,#REF!,0),12),2,0)),ISNUMBER(INDEX('Serviços Sinapi'!$A:$H,MATCH(#REF!,'Serviços Sinapi'!$I:$I,0),8))),"C",IF(ISTEXT(#REF!),"I","")))) ->  | J12: =IF(ISNUMBER(I12),ROUND(H12*I12,2),"") -> 
A13: SF-00004 | B13: Projetos de segurança do trabalho | D13: =IF(C13<>"",INDEX(Orçamentária!A:K,MATCH(C13,Orçamentária!A:A,0),12),IF(AND(C13="",#REF!=""),"",#REF!)) ->  | E13: =IF(RIGHT(F13,27)="com encargos complementares","MO",IF(ISNUMBER(INDEX('Insumos Sinapi'!$A:$H,MATCH(#REF!,'Insumos Sinapi'!$H:$H,0),7)),"I",IF(OR(ISNUMBER(OFFSET(INDEX(#REF!,MATCH(F13,#REF!,0),12),2,0)),ISNUMBER(INDEX('Serviços Sinapi'!$A:$H,MATCH(#REF!,'Serviços Sinapi'!$I:$I,0),8))),"C",IF(ISTEXT(#REF!),"I","")))) ->  | G13: =Orçamentária!E11 -> m2 | J13: =IF(ISNUMBER(I13),ROUND(H13*I13,2),"") -> 
D14: =IF(C14<>"",INDEX(Orçamentária!A:K,MATCH(C14,Orçamentária!A:A,0),12),IF(AND(C14="",#REF!=""),"",#REF!)) ->  | E14: =IF(RIGHT(F14,27)="com encargos complementares","MO",IF(ISNUMBER(INDEX('Insumos Sinapi'!$A:$H,MATCH(#REF!,'Insumos Sinapi'!$H:$H,0),7)),"I",IF(OR(ISNUMBER(OFFSET(INDEX(#REF!,MATCH(F14,#REF!,0),12),2,0)),ISNUMBER(INDEX('Serviços Sinapi'!$A:$H,MATCH(#REF!,'Serviços Sinapi'!$I:$I,0),8))),"C",IF(ISTEXT(#REF!),"I","")))) ->  | J14: =IF(ISNUMBER(I14),ROUND(H14*I14,2),"") -> 
C15: SF-00004 | D15: =IF(C15<>"",INDEX(Orçamentária!A:K,MATCH(C15,Orçamentária!A:A,0),12),IF(AND(C15="",#REF!=""),"",#REF!)) ->  | E15: =IF(RIGHT(F15,27)="com encargos complementares","MO",IF(ISNUMBER(INDEX('Insumos Sinapi'!$A:$H,MATCH(#REF!,'Insumos Sinapi'!$H:$H,0),7)),"I",IF(OR(ISNUMBER(OFFSET(INDEX(#REF!,MATCH(F15,#REF!,0),12),2,0)),ISNUMBER(INDEX('Serviços Sinapi'!$A:$H,MATCH(#REF!,'Serviços Sinapi'!$I:$I,0),8))),"C",IF(ISTEXT(#REF!),"I","")))) -> MO | F15: Engenheiro Civil de Obra Pleno com encargos complementares | G15: h | H15: 20 | I15: 78.57 | J15: =IF(ISNUMBER(I15),ROUND(H15*I15,2),"") -> 1571.4 | K15: =SUM(J15:J16) -> 1797.9
C16: SF-00004 | D16: =IF(C16<>"",INDEX(Orçamentária!A:K,MATCH(C16,Orçamentária!A:A,0),12),IF(AND(C16="",#REF!=""),"",#REF!)) ->  | E16: =IF(RIGHT(F16,27)="com encargos complementares","MO",IF(ISNUMBER(INDEX('Insumos Sinapi'!$A:$H,MATCH(#REF!,'Insumos Sinapi'!$H:$H,0),7)),"I",IF(OR(ISNUMBER(OFFSET(INDEX(#REF!,MATCH(F16,#REF!,0),12),2,0)),ISNUMBER(INDEX('Serviços Sinapi'!$A:$H,MATCH(#REF!,'Serviços Sinapi'!$I:$I,0),8))),"C",IF(ISTEXT(#REF!),"I","")))) ->  | F16: Anotação de Responsabilidade Técnica | G16: un | H16: 1 | I16: 226.5 | J16: =IF(ISNUMBER(I16),ROUND(H16*I16,2),"") -> 226.5
D17: =IF(C17<>"",INDEX(Orçamentária!A:K,MATCH(C17,Orçamentária!A:A,0),12),IF(AND(C17="",#REF!=""),"",#REF!)) ->  | E17: =IF(RIGHT(F17,27)="com encargos complementares","MO",IF(ISNUMBER(INDEX('Insumos Sinapi'!$A:$H,MATCH(#REF!,'Insumos Sinapi'!$H:$H,0),7)),"I",IF(OR(ISNUMBER(OFFSET(INDEX(#REF!,MATCH(F17,#REF!,0),12),2,0)),ISNUMBER(INDEX('Serviços Sinapi'!$A:$H,MATCH(#REF!,'Serviços Sinapi'!$I:$I,0),8))),"C",IF(ISTEXT(#REF!),"I","")))) ->  | J17: =IF(ISNUMBER(I17),ROUND(H17*I17,2),"") -> 
A18: SF-00045 | B18: Remoção de vidro comum | D18: =IF(C18<>"",INDEX(Orçamentária!A:K,MATCH(C18,Orçamentária!A:A,0),12),IF(AND(C18="",#REF!=""),"",#REF!)) ->  | E18: =IF(RIGHT(F18,27)="com encargos complementares","MO",IF(ISNUMBER(INDEX('Insumos Sinapi'!$A:$H,MATCH(#REF!,'Insumos Sinapi'!$H:$H,0),7)),"I",IF(OR(ISNUMBER(OFFSET(INDEX(#REF!,MATCH(F18,#REF!,0),12),2,0)),ISNUMBER(INDEX('Serviços Sinapi'!$A:$H,MATCH(#REF!,'Serviços Sinapi'!$I:$I,0),8))),"C",IF(ISTEXT(#REF!),"I","")))) ->  | G18: =Orçamentária!E9 -> m2 | J18: =IF(ISNUMBER(I18),ROUND(H18*I18,2),"") -> 
D19: =IF(C19<>"",INDEX(Orçamentária!A:K,MATCH(C19,Orçamentária!A:A,0),12),IF(AND(C19="",#REF!=""),"",#REF!)) ->  | E19: =IF(RIGHT(F19,27)="com encargos complementares","MO",IF(ISNUMBER(INDEX('Insumos Sinapi'!$A:$H,MATCH(#REF!,'Insumos Sinapi'!$H:$H,0),7)),"I",IF(OR(ISNUMBER(OFFSET(INDEX(#REF!,MATCH(F19,#REF!,0),12),2,0)),ISNUMBER(INDEX('Serviços Sinapi'!$A:$H,MATCH(#REF!,'Serviços Sinapi'!$I:$I,0),8))),"C",IF(ISTEXT(#REF!),"I","")))) ->  | J19: =IF(ISNUMBER(I19),ROUND(H19*I19,2),"") -> 
C20: SF-00045 | D20: =IF(C20<>"",INDEX(Orçamentária!A:K,MATCH(C20,Orçamentária!A:A,0),12),IF(AND(C20="",#REF!=""),"",#REF!)) ->  | E20: =IF(RIGHT(F20,27)="com encargos complementares","MO",IF(ISNUMBER(INDEX('Insumos Sinapi'!$A:$H,MATCH(#REF!,'Insumos Sinapi'!$H:$H,0),7)),"I",IF(OR(ISNUMBER(OFFSET(INDEX(#REF!,MATCH(F20,#REF!,0),12),2,0)),ISNUMBER(INDEX('Serviços Sinapi'!$A:$H,MATCH(#REF!,'Serviços Sinapi'!$I:$I,0),8))),"C",IF(ISTEXT(#REF!),"I","")))) -> MO | F20: Servente com Encargos Complementares | G20: h | H20: 0.2 | I20: 14.37 | J20: =IF(ISNUMBER(I20),ROUND(H20*I20,2),"") -> 2.87 | K20: =SUM(J20:J21) -> 11.83
C21: SF-00045 | D21: =IF(C21<>"",INDEX(Orçamentária!A:K,MATCH(C21,Orçamentária!A:A,0),12),IF(AND(C21="",#REF!=""),"",#REF!)) ->  | E21: =IF(RIGHT(F21,27)="com encargos complementares","MO",IF(ISNUMBER(INDEX('Insumos Sinapi'!$A:$H,MATCH(#REF!,'Insumos Sinapi'!$H:$H,0),7)),"I",IF(OR(ISNUMBER(OFFSET(INDEX(#REF!,MATCH(F21,#REF!,0),12),2,0)),ISNUMBER(INDEX('Serviços Sinapi'!$A:$H,MATCH(#REF!,'Serviços Sinapi'!$I:$I,0),8))),"C",IF(ISTEXT(#REF!),"I","")))) -> MO | F21: Vidraceiro com encargos complementares | G21: h | H21: 0.5 | I21: 17.92 | J21: =IF(ISNUMBER(I21),ROUND(H21*I21,2),"") -> 8.96
D22: =IF(C22<>"",INDEX(Orçamentária!A:K,MATCH(C22,Orçamentária!A:A,0),12),IF(AND(C22="",#REF!=""),"",#REF!)) ->  | E22: =IF(RIGHT(F22,27)="com encargos complementares","MO",IF(ISNUMBER(INDEX('Insumos Sinapi'!$A:$H,MATCH(#REF!,'Insumos Sinapi'!$H:$H,0),7)),"I",IF(OR(ISNUMBER(OFFSET(INDEX(#REF!,MATCH(F22,#REF!,0),12),2,0)),ISNUMBER(INDEX('Serviços Sinapi'!$A:$H,MATCH(#REF!,'Serviços Sinapi'!$I:$I,0),8))),"C",IF(ISTEXT(#REF!),"I","")))) ->  | J22: =IF(ISNUMBER(I22),ROUND(H22*I22,2),"") -> 
A23: SF-00051 | B23: Corda de poliamida 12 mm tipo bombeiro, para trabalho em altura | D23: =IF(C23<>"",INDEX(Orçamentária!A:K,MATCH(C23,Orçamentária!A:A,0),12),IF(AND(C23="",#REF!=""),"",#REF!)) ->  | E23: =IF(RIGHT(F23,27)="com encargos complementares","MO",IF(ISNUMBER(INDEX('Insumos Sinapi'!$A:$H,MATCH(#REF!,'Insumos Sinapi'!$H:$H,0),7)),"I",IF(OR(ISNUMBER(OFFSET(INDEX(#REF!,MATCH(F23,#REF!,0),12),2,0)),ISNUMBER(INDEX('Serviços Sinapi'!$A:$H,MATCH(#REF!,'Serviços Sinapi'!$I:$I,0),8))),"C",IF(ISTEXT(#REF!),"I","")))) ->  | G23: =Orçamentária!E10 -> m | J23: =IF(ISNUMBER(I23),ROUND(H23*I23,2),"") -> 
D24: =IF(C24<>"",INDEX(Orçamentária!A:K,MATCH(C24,Orçamentária!A:A,0),12),IF(AND(C24="",#REF!=""),"",#REF!)) ->  | E24: =IF(RIGHT(F24,27)="com encargos complementares","MO",IF(ISNUMBER(INDEX('Insumos Sinapi'!$A:$H,MATCH(#REF!,'Insumos Sinapi'!$H:$H,0),7)),"I",IF(OR(ISNUMBER(OFFSET(INDEX(#REF!,MATCH(F24,#REF!,0),12),2,0)),ISNUMBER(INDEX('Serviços Sinapi'!$A:$H,MATCH(#REF!,'Serviços Sinapi'!$I:$I,0),8))),"C",IF(ISTEXT(#REF!),"I","")))) ->  | J24: =IF(ISNUMBER(I24),ROUND(H24*I24,2),"") -> 
C25: SF-00051 | D25: =IF(C25<>"",INDEX(Orçamentária!A:K,MATCH(C25,Orçamentária!A:A,0),12),IF(AND(C25="",#REF!=""),"",#REF!)) ->  | E25: =IF(RIGHT(F25,27)="com encargos complementares","MO",IF(ISNUMBER(INDEX('Insumos Sinapi'!$A:$H,MATCH(#REF!,'Insumos Sinapi'!$H:$H,0),7)),"I",IF(OR(ISNUMBER(OFFSET(INDEX(#REF!,MATCH(F25,#REF!,0),12),2,0)),ISNUMBER(INDEX('Serviços Sinapi'!$A:$H,MATCH(#REF!,'Serviços Sinapi'!$I:$I,0),8))),"C",IF(ISTEXT(#REF!),"I","")))) ->  | F25: CORDA DE POLIAMIDA 12 MM TIPO BOMBEIRO, PARA TRABALHO EM ALTURA | G25: 100m | H25: 0.01 | I25: 444 | J25: =IF(ISNUMBER(I25),ROUND(H25*I25,2),"") -> 4.44 | K25: =SUM(J25:J25) -> 4.44
D26: =IF(C26<>"",INDEX(Orçamentária!A:K,MATCH(C26,Orçamentária!A:A,0),12),IF(AND(C26="",#REF!=""),"",#REF!)) ->  | E26: =IF(RIGHT(F26,27)="com encargos complementares","MO",IF(ISNUMBER(INDEX('Insumos Sinapi'!$A:$H,MATCH(#REF!,'Insumos Sinapi'!$H:$H,0),7)),"I",IF(OR(ISNUMBER(OFFSET(INDEX(#REF!,MATCH(F26,#REF!,0),12),2,0)),ISNUMBER(INDEX('Serviços Sinapi'!$A:$H,MATCH(#REF!,'Serviços Sinapi'!$I:$I,0),8))),"C",IF(ISTEXT(#REF!),"I","")))) ->  | J26: =IF(ISNUMBER(I26),ROUND(H26*I26,2),"") -> 
A27: SF-00155 | B27: Instalação de vidro reaproveitado | D27: =IF(C27<>"",INDEX(Orçamentária!A:K,MATCH(C27,Orçamentária!A:A,0),12),IF(AND(C27="",#REF!=""),"",#REF!)) ->  | E27: =IF(RIGHT(F27,27)="com encargos complementares","MO",IF(ISNUMBER(INDEX('Insumos Sinapi'!$A:$H,MATCH(#REF!,'Insumos Sinapi'!$H:$H,0),7)),"I",IF(OR(ISNUMBER(OFFSET(INDEX(#REF!,MATCH(F27,#REF!,0),12),2,0)),ISNUMBER(INDEX('Serviços Sinapi'!$A:$H,MATCH(#REF!,'Serviços Sinapi'!$I:$I,0),8))),"C",IF(ISTEXT(#REF!),"I","")))) ->  | G27: =Orçamentária!E11 -> m2 | J27: =IF(ISNUMBER(I27),ROUND(H27*I27,2),"") -> 
D28: =IF(C28<>"",INDEX(Orçamentária!A:K,MATCH(C28,Orçamentária!A:A,0),12),IF(AND(C28="",#REF!=""),"",#REF!)) ->  | E28: =IF(RIGHT(F28,27)="com encargos complementares","MO",IF(ISNUMBER(INDEX('Insumos Sinapi'!$A:$H,MATCH(#REF!,'Insumos Sinapi'!$H:$H,0),7)),"I",IF(OR(ISNUMBER(OFFSET(INDEX(#REF!,MATCH(F28,#REF!,0),12),2,0)),ISNUMBER(INDEX('Serviços Sinapi'!$A:$H,MATCH(#REF!,'Serviços Sinapi'!$I:$I,0),8))),"C",IF(ISTEXT(#REF!),"I","")))) ->  | J28: =IF(ISNUMBER(I28),ROUND(H28*I28,2),"") -> 
C29: SF-00155 | D29: =IF(C29<>"",INDEX(Orçamentária!A:K,MATCH(C29,Orçamentária!A:A,0),12),IF(AND(C29="",#REF!=""),"",#REF!)) ->  | E29: =IF(RIGHT(F29,27)="com encargos complementares","MO",IF(ISNUMBER(INDEX('Insumos Sinapi'!$A:$H,MATCH(#REF!,'Insumos Sinapi'!$H:$H,0),7)),"I",IF(OR(ISNUMBER(OFFSET(INDEX(#REF!,MATCH(F29,#REF!,0),12),2,0)),ISNUMBER(INDEX('Serviços Sinapi'!$A:$H,MATCH(#REF!,'Serviços Sinapi'!$I:$I,0),8))),"C",IF(ISTEXT(#REF!),"I","")))) -> MO | F29: Vidraceiro com encargos complementares | G29: h | H29: 0.5 | I29: 17.92 | J29: =IF(ISNUMBER(I29),ROUND(H29*I29,2),"") -> 8.96 | K29: =SUM(J29:J31) -> 17.77
C30: SF-00155 | D30: =IF(C30<>"",INDEX(Orçamentária!A:K,MATCH(C30,Orçamentária!A:A,0),12),IF(AND(C30="",#REF!=""),"",#REF!)) ->  | E30: =IF(RIGHT(F30,27)="com encargos complementares","MO",IF(ISNUMBER(INDEX('Insumos Sinapi'!$A:$H,MATCH(#REF!,'Insumos Sinapi'!$H:$H,0),7)),"I",IF(OR(ISNUMBER(OFFSET(INDEX(#REF!,MATCH(F30,#REF!,0),12),2,0)),ISNUMBER(INDEX('Serviços Sinapi'!$A:$H,MATCH(#REF!,'Serviços Sinapi'!$I:$I,0),8))),"C",IF(ISTEXT(#REF!),"I","")))) -> MO | F30: Servente com Encargos Complementares | G30: h | H30: =H29/2 -> 0.25 | I30: 14.37 | J30: =IF(ISNUMBER(I30),ROUND(H30*I30,2),"") -> 3.59
C31: SF-00155 | D31: =IF(C31<>"",INDEX(Orçamentária!A:K,MATCH(C31,Orçamentária!A:A,0),12),IF(AND(C31="",#REF!=""),"",#REF!)) ->  | E31: =IF(RIGHT(F31,27)="com encargos complementares","MO",IF(ISNUMBER(INDEX('Insumos Sinapi'!$A:$H,MATCH(#REF!,'Insumos Sinapi'!$H:$H,0),7)),"I",IF(OR(ISNUMBER(OFFSET(INDEX(#REF!,MATCH(F31,#REF!,0),12),2,0)),ISNUMBER(INDEX('Serviços Sinapi'!$A:$H,MATCH(#REF!,'Serviços Sinapi'!$I:$I,0),8))),"C",IF(ISTEXT(#REF!),"I","")))) ->  | F31: Silicone acetico uso geral incolor 280 g | G31: un | H31: =1/3 -> 0.3333333333 | I31: 15.66 | J31: =IF(ISNUMBER(I31),ROUND(H31*I31,2),"") -> 5.22
D32: =IF(C32<>"",INDEX(Orçamentária!A:K,MATCH(C32,Orçamentária!A:A,0),12),IF(AND(C32="",#REF!=""),"",#REF!)) ->  | E32: =IF(RIGHT(F32,27)="com encargos complementares","MO",IF(ISNUMBER(INDEX('Insumos Sinapi'!$A:$H,MATCH(#REF!,'Insumos Sinapi'!$H:$H,0),7)),"I",IF(OR(ISNUMBER(OFFSET(INDEX(#REF!,MATCH(F32,#REF!,0),12),2,0)),ISNUMBER(INDEX('Serviços Sinapi'!$A:$H,MATCH(#REF!,'Serviços Sinapi'!$I:$I,0),8))),"C",IF(ISTEXT(#REF!),"I","")))) ->  | J32: =IF(ISNUMBER(I32),ROUND(H32*I32,2),"") -> 
A33: SF-00158 | B33: Vidro liso comum transparente 6mm | D33: =IF(C33<>"",INDEX(Orçamentária!A:K,MATCH(C33,Orçamentária!A:A,0),12),IF(AND(C33="",#REF!=""),"",#REF!)) ->  | E33: =IF(RIGHT(F33,27)="com encargos complementares","MO",IF(ISNUMBER(INDEX('Insumos Sinapi'!$A:$H,MATCH(#REF!,'Insumos Sinapi'!$H:$H,0),7)),"I",IF(OR(ISNUMBER(OFFSET(INDEX(#REF!,MATCH(F33,#REF!,0),12),2,0)),ISNUMBER(INDEX('Serviços Sinapi'!$A:$H,MATCH(#REF!,'Serviços Sinapi'!$I:$I,0),8))),"C",IF(ISTEXT(#REF!),"I","")))) ->  | G33: =Orçamentária!E12 -> m2 | J33: =IF(ISNUMBER(I33),ROUND(H33*I33,2),"") -> 
D34: =IF(C34<>"",INDEX(Orçamentária!A:K,MATCH(C34,Orçamentária!A:A,0),12),IF(AND(C34="",#REF!=""),"",#REF!)) ->  | E34: =IF(RIGHT(F34,27)="com encargos complementares","MO",IF(ISNUMBER(INDEX('Insumos Sinapi'!$A:$H,MATCH(#REF!,'Insumos Sinapi'!$H:$H,0),7)),"I",IF(OR(ISNUMBER(OFFSET(INDEX(#REF!,MATCH(F34,#REF!,0),12),2,0)),ISNUMBER(INDEX('Serviços Sinapi'!$A:$H,MATCH(#REF!,'Serviços Sinapi'!$I:$I,0),8))),"C",IF(ISTEXT(#REF!),"I","")))) ->  | J34: =IF(ISNUMBER(I34),ROUND(H34*I34,2),"") -> 
C35: SF-00158 | D35: =IF(C35<>"",INDEX(Orçamentária!A:K,MATCH(C35,Orçamentária!A:A,0),12),IF(AND(C35="",#REF!=""),"",#REF!)) ->  | E35: =IF(RIGHT(F35,27)="com encargos complementares","MO",IF(ISNUMBER(INDEX('Insumos Sinapi'!$A:$H,MATCH(#REF!,'Insumos Sinapi'!$H:$H,0),7)),"I",IF(OR(ISNUMBER(OFFSET(INDEX(#REF!,MATCH(F35,#REF!,0),12),2,0)),ISNUMBER(INDEX('Serviços Sinapi'!$A:$H,MATCH(#REF!,'Serviços Sinapi'!$I:$I,0),8))),"C",IF(ISTEXT(#REF!),"I","")))) -> MO | F35: Servente com Encargos Complementares | G35: h | H35: 0.2 | I35: 14.37 | J35: =IF(ISNUMBER(I35),ROUND(H35*I35,2),"") -> 2.87 | K35: =SUM(J35:J38) -> 158.63
C36: SF-00158 | D36: =IF(C36<>"",INDEX(Orçamentária!A:K,MATCH(C36,Orçamentária!A:A,0),12),IF(AND(C36="",#REF!=""),"",#REF!)) ->  | E36: =IF(RIGHT(F36,27)="com encargos complementares","MO",IF(ISNUMBER(INDEX('Insumos Sinapi'!$A:$H,MATCH(#REF!,'Insumos Sinapi'!$H:$H,0),7)),"I",IF(OR(ISNUMBER(OFFSET(INDEX(#REF!,MATCH(F36,#REF!,0),12),2,0)),ISNUMBER(INDEX('Serviços Sinapi'!$A:$H,MATCH(#REF!,'Serviços Sinapi'!$I:$I,0),8))),"C",IF(ISTEXT(#REF!),"I","")))) -> MO | F36: Vidraceiro com encargos complementares | G36: h | H36: 1 | I36: 17.92 | J36: =IF(ISNUMBER(I36),ROUND(H36*I36,2),"") -> 17.92
C37: SF-00158 | D37: =IF(C37<>"",INDEX(Orçamentária!A:K,MATCH(C37,Orçamentária!A:A,0),12),IF(AND(C37="",#REF!=""),"",#REF!)) ->  | E37: =IF(RIGHT(F37,27)="com encargos complementares","MO",IF(ISNUMBER(INDEX('Insumos Sinapi'!$A:$H,MATCH(#REF!,'Insumos Sinapi'!$H:$H,0),7)),"I",IF(OR(ISNUMBER(OFFSET(INDEX(#REF!,MATCH(F37,#REF!,0),12),2,0)),ISNUMBER(INDEX('Serviços Sinapi'!$A:$H,MATCH(#REF!,'Serviços Sinapi'!$I:$I,0),8))),"C",IF(ISTEXT(#REF!),"I","")))) ->  | F37: VIDRO LISO INCOLOR 6 MM - SEM COLOCACAO | G37: m2 | H37: 1 | I37: 126.5 | J37: =IF(ISNUMBER(I37),ROUND(H37*I37,2),"") -> 126.5
C38: SF-00158 | D38: =IF(C38<>"",INDEX(Orçamentária!A:K,MATCH(C38,Orçamentária!A:A,0),12),IF(AND(C38="",#REF!=""),"",#REF!)) ->  | E38: =IF(RIGHT(F38,27)="com encargos complementares","MO",IF(ISNUMBER(INDEX('Insumos Sinapi'!$A:$H,MATCH(#REF!,'Insumos Sinapi'!$H:$H,0),7)),"I",IF(OR(ISNUMBER(OFFSET(INDEX(#REF!,MATCH(F38,#REF!,0),12),2,0)),ISNUMBER(INDEX('Serviços Sinapi'!$A:$H,MATCH(#REF!,'Serviços Sinapi'!$I:$I,0),8))),"C",IF(ISTEXT(#REF!),"I","")))) ->  | F38: Massa para vidro | G38: kg | H38: 2 | I38: 5.67 | J38: =IF(ISNUMBER(I38),ROUND(H38*I38,2),"") -> 11.34
D39: =IF(C39<>"",INDEX(Orçamentária!A:K,MATCH(C39,Orçamentária!A:A,0),12),IF(AND(C39="",#REF!=""),"",#REF!)) ->  | E39: =IF(RIGHT(F39,27)="com encargos complementares","MO",IF(ISNUMBER(INDEX('Insumos Sinapi'!$A:$H,MATCH(#REF!,'Insumos Sinapi'!$H:$H,0),7)),"I",IF(OR(ISNUMBER(OFFSET(INDEX(#REF!,MATCH(F39,#REF!,0),12),2,0)),ISNUMBER(INDEX('Serviços Sinapi'!$A:$H,MATCH(#REF!,'Serviços Sinapi'!$I:$I,0),8))),"C",IF(ISTEXT(#REF!),"I","")))) ->  | J39: =IF(ISNUMBER(I39),ROUND(H39*I39,2),"") -> 

Sheet BDI
A1: =Orçamentária!A1 -> Linha de vida - Anexo I
A2: BENEFÍCIOS E DESPESAS INDIRETAS - BDI
A4: BDI Edificações | F4: BDI mero fornecimento
A5: Componentes do BDI | B5: Cálculo sem CPRB | C5: Cálculo com CPRB | F5: Componentes do BDI | G5: Cálculo sem CPRB | H5: Cálculo com CPRB
B6: (não-desonerado) | C6: (desonerado) | G6: (não-desonerado) | H6: (desonerado)
B7: % considerado | C7: % considerado | G7: % considerado | H7: % considerado
A8: AC | B8: 0.04 | C8: =B8 -> 0.04 | F8: AC | G8: 0.0169 | H8: 0.0169
A9: S+G | B9: 0.008 | C9: 0.008 | F9: S+G | G9: 0.003 | H9: 0.003
A10: R | B10: 0.0109 | C10: 0.0109 | F10: R | G10: 0.0056 | H10: 0.0056
A11: DF | B11: 0.01 | C11: 0.01 | F11: DF | G11: 0.0085 | H11: 0.0085
A12: L | B12: 0.0616 | C12: 0.0616 | F12: L | G12: 0.035 | H12: 0.035
A13: PIS | B13: 0.0065 | C13: 0.0065 | F13: PIS | G13: 0.0065 | H13: 0.0065
A14: COFINS | B14: 0.03 | C14: 0.03 | F14: COFINS | G14: 0.03 | H14: 0.03
A15: CPRB | B15: 0 | C15: 0.045 | F15: CPRB | G15: 0 | H15: 0.045
A16: ISS | B16: 0.02 | C16: =B16 -> 0.02 | F16: ISS | G16: 0 | H16: 0
A17: BDI Edificações | B17: =ROUND(((1+B8+B9+B10)*(1+B11)*(1+B12))/(1-(B13+B14+B15+B16))-1,4) -> 0.2034 | C17: =ROUND(((1+C8+C9+C10)*(1+C11)*(1+C12))/(1-(C13+C14+C15+C16))-1,4) -> 0.2636 | F17: BDI mero fornecimento | G17: =ROUND(((1+G8+G9+G10)*(1+G11)*(1+G12))/(1-(G13+G14+G15+G16))-1,2) -> 0.11 | H17: =ROUND(((1+H8+H9+H10)*(1+H11)*(1+H12))/(1-(H13+H14+H15+H16))-1,4) -> 0.1654
A19: Referências TCU - BDI Edificações | F19: Referências TCU - BDI mero fornecimento
B20: 1º Quartil | C20: Médio | D20: 3º Quartil | G20: 1º Quartil | H20: Médio | I20: 3º Quartil
A21: AC | B21: 0.03 | C21: 0.04 | D21: 0.055 | F21: AC | G21: 0.015 | H21: 0.0345 | I21: 0.0449
A22: S+G | B22: 0.008 | C22: 0.008 | D22: 0.01 | F22: S+G | G22: 0.003 | H22: 0.0048 | I22: 0.0082
A23: R | B23: 0.0097 | C23: 0.0127 | D23: 0.0127 | F23: R | G23: 0.0056 | H23: 0.0085 | I23: 0.0089
A24: DF | B24: 0.0059 | C24: 0.0123 | D24: 0.0139 | F24: DF | G24: 0.0085 | H24: 0.0085 | I24: 0.0111
A25: L | B25: 0.0616 | C25: 0.074 | D25: 0.0896 | F25: L | G25: 0.035 | H25: 0.0511 | I25: 0.0622
A27: BDI | B27: 0.2034 | C27: 0.2212 | D27: 0.25 | F27: BDI | G27: 0.111 | H27: 0.1402 | I27: 0.168
A47: Fonte: Acórdãos 2.369/2011-TCU-Plenário e 2.622/2013-TCU-Plenário.

Sheet Serviços Sinapi (hidden)
G3: data-base | H3: 2019-12-01 | K3: Coluna D | L3: Desonerado
A5: CODIGO DA COMPOSICAO | B5: DESCRICAO DA COMPOSICAO | C5: UNIDADE | D5: CUSTO TOTAL | E5: CUSTO TOTAL | K5: Coluna E | L5: Não-desonerado
G6: Desonerado | H6: Não-desonerado
A7: 97141 | B7: ASSENTAMENTO DE TUBO DE FERRO FUNDIDO PARA REDE DE ÁGUA, DN 80 MM, JUNTA ELÁSTICA, INSTALADO EM LOCAL COM NÍVEL ALTO DE INTERFERÊNCIAS (NÃO INCLUI FORNECIMENTO). AF_11/2017 | C7: M | D7: 5,39 | E7: 5,82 | G7: =IF(D7="","",D7+0) -> 5.39 | H7: =IF(E7="","",E7+0) -> 5.82 | I7: =IF(OR(G7="",H7=""),"",CONCATENATE("Sinapi ",A7)) -> Sinapi 97141
A8: 97142 | B8: ASSENTAMENTO DE TUBO DE FERRO FUNDIDO PARA REDE DE ÁGUA, DN 100 MM, JUNTA ELÁSTICA, INSTALADO EM LOCAL COM NÍVEL ALTO DE INTERFERÊNCIAS (NÃO INCLUI FORNECIMENTO). AF_11/2017 | C8: M | D8: 6,03 | E8: 6,50 | G8: =IF(D8="","",D8+0) -> 6.03 | H8: =IF(E8="","",E8+0) -> 6.5 | I8: =IF(OR(G8="",H8=""),"",CONCATENATE("Sinapi ",A8)) -> Sinapi 97142
A9: 97143 | B9: ASSENTAMENTO DE TUBO DE FERRO FUNDIDO PARA REDE DE ÁGUA, DN 150 MM, JUNTA ELÁSTICA, INSTALADO EM LOCAL COM NÍVEL ALTO DE INTERFERÊNCIAS (NÃO INCLUI FORNECIMENTO). AF_11/2017 | C9: M | D9: 7,58 | E9: 8,21 | G9: 7.58 | H9: 8.21 | I9: Sinapi 97143
A10: 97144 | B10: ASSENTAMENTO DE TUBO DE FERRO FUNDIDO PARA REDE DE ÁGUA, DN 200 MM, JUNTA ELÁSTICA, INSTALADO EM LOCAL COM NÍVEL ALTO DE INTERFERÊNCIAS (NÃO INCLUI FORNECIMENTO). AF_11/2017 | C10: M | D10: 9,16 | E10: 9,91 | G10: 9.16 | H10: 9.91 | I10: Sinapi 97144
A11: 97145 | B11: ASSENTAMENTO DE TUBO DE FERRO FUNDIDO PARA REDE DE ÁGUA, DN 250 MM, JUNTA ELÁSTICA, INSTALADO EM LOCAL COM NÍVEL ALTO DE INTERFERÊNCIAS (NÃO INCLUI FORNECIMENTO). AF_11/2017 | C11: M | D11: 10,74 | E11: 11,62 | G11: 10.74 | H11: 11.62 | I11: Sinapi 97145
A12: 97146 | B12: ASSENTAMENTO DE TUBO DE FERRO FUNDIDO PARA REDE DE ÁGUA, DN 300 MM, JUNTA ELÁSTICA, INSTALADO EM LOCAL COM NÍVEL ALTO DE INTERFERÊNCIAS (NÃO INCLUI FORNECIMENTO). AF_11/2017 | C12: M | D12: 12,32 | E12: 13,35 | G12: 12.32 | H12: 13.35 | I12: Sinapi 97146
A13: 97147 | B13: ASSENTAMENTO DE TUBO DE FERRO FUNDIDO PARA REDE DE ÁGUA, DN 350 MM, JUNTA ELÁSTICA, INSTALADO EM LOCAL COM NÍVEL ALTO DE INTERFERÊNCIAS (NÃO INCLUI FORNECIMENTO). AF_11/2017 | C13: M | D13: 13,91 | E13: 15,08 | G13: 13.91 | H13: 15.08 | I13: Sinapi 97147
A14: 97148 | B14: ASSENTAMENTO DE TUBO DE FERRO FUNDIDO PARA REDE DE ÁGUA, DN 400 MM, JUNTA ELÁSTICA, INSTALADO EM LOCAL COM NÍVEL ALTO DE INTERFERÊNCIAS (NÃO INCLUI FORNECIMENTO). AF_11/2017 | C14: M | D14: 15,49 | E14: 16,79 | G14: 15.49 | H14: 16.79 | I14: Sinapi 97148
A15: 97149 | B15: ASSENTAMENTO DE TUBO DE FERRO FUNDIDO PARA REDE DE ÁGUA, DN 450 MM, JUNTA ELÁSTICA, INSTALADO EM LOCAL COM NÍVEL ALTO DE INTERFERÊNCIAS (NÃO INCLUI FORNECIMENTO). AF_11/2017 | C15: M | D15: 17,10 | E15: 18,54 | G15: 17.1 | H15: 18.54 | I15: Sinapi 97149
A16: 97150 | B16: ASSENTAMENTO DE TUBO DE FERRO FUNDIDO PARA REDE DE ÁGUA, DN 500 MM, JUNTA ELÁSTICA, INSTALADO EM LOCAL COM NÍVEL ALTO DE INTERFERÊNCIAS (NÃO INCLUI FORNECIMENTO). AF_11/2017 | C16: M | D16: 20,68 | E16: 22,26 | G16: 20.68 | H16: 22.26 | I16: Sinapi 97150
A17: 97151 | B17: ASSENTAMENTO DE TUBO DE FERRO FUNDIDO PARA REDE DE ÁGUA, DN 600 MM, JUNTA ELÁSTICA, INSTALADO EM LOCAL COM NÍVEL ALTO DE INTERFERÊNCIAS (NÃO INCLUI FORNECIMENTO). AF_11/2017 | C17: M | D17: 24,17 | E17: 26,03 | G17: 24.17 | H17: 26.03 | I17: Sinapi 97151
A18: 97152 | B18: ASSENTAMENTO DE TUBO DE FERRO FUNDIDO PARA REDE DE ÁGUA, DN 700 MM, JUNTA ELÁSTICA, INSTALADO EM LOCAL COM NÍVEL ALTO DE INTERFERÊNCIAS (NÃO INCLUI FORNECIMENTO). AF_11/2017 | C18: M | D18: 27,47 | E18: 29,58 | G18: 27.47 | H18: 29.58 | I18: Sinapi 97152
A19: 97153 | B19: ASSENTAMENTO DE TUBO DE FERRO FUNDIDO PARA REDE DE ÁGUA, DN 800 MM, JUNTA ELÁSTICA, INSTALADO EM LOCAL COM NÍVEL ALTO DE INTERFERÊNCIAS (NÃO INCLUI FORNECIMENTO). AF_11/2017 | C19: M | D19: 30,88 | E19: 33,27 | G19: 30.88 | H19: 33.27 | I19: Sinapi 97153
A20: 97154 | B20: ASSENTAMENTO DE TUBO DE FERRO FUNDIDO PARA REDE DE ÁGUA, DN 900 MM, JUNTA ELÁSTICA, INSTALADO EM LOCAL COM NÍVEL ALTO DE INTERFERÊNCIAS (NÃO INCLUI FORNECIMENTO). AF_11/2017 | C20: M | D20: 34,32 | E20: 36,98 | G20: 34.32 | H20: 36.98 | I20: Sinapi 97154
A21: 97155 | B21: ASSENTAMENTO DE TUBO DE FERRO FUNDIDO PARA REDE DE ÁGUA, DN 1000 MM, JUNTA ELÁSTICA, INSTALADO EM LOCAL COM NÍVEL ALTO DE INTERFERÊNCIAS (NÃO INCLUI FORNECIMENTO). AF_11/2017 | C21: M | D21: 37,76 | E21: 40,70 | G21: 37.76 | H21: 40.7 | I21: Sinapi 97155
A22: 97156 | B22: ASSENTAMENTO DE TUBO DE FERRO FUNDIDO PARA REDE DE ÁGUA, DN 1200 MM, JUNTA ELÁSTICA, INSTALADO EM LOCAL COM NÍVEL ALTO DE INTERFERÊNCIAS (NÃO INCLUI FORNECIMENTO). AF_11/2017 | C22: M | D22: 44,96 | E22: 48,45 | G22: 44.96 | H22: 48.45 | I22: Sinapi 97156
A23: 97157 | B23: ASSENTAMENTO DE TUBO DE FERRO FUNDIDO PARA REDE DE ÁGUA, DN 80 MM, JUNTA ELÁSTICA, INSTALADO EM LOCAL COM NÍVEL BAIXO DE INTERFERÊNCIAS (NÃO INCLUI FORNECIMENTO). AF_11/2017 | C23: M | D23: 3,29 | E23: 3,53 | G23: 3.29 | H23: 3.53 | I23: Sinapi 97157
A24: 97158 | B24: ASSENTAMENTO DE TUBO DE FERRO FUNDIDO PARA REDE DE ÁGUA, DN 100 MM, JUNTA ELÁSTICA, INSTALADO EM LOCAL COM NÍVEL BAIXO DE INTERFERÊNCIAS (NÃO INCLUI FORNECIMENTO). AF_11/2017 | C24: M | D24: 3,68 | E24: 3,95 | G24: 3.68 | H24: 3.95 | I24: Sinapi 97158
A25: 97159 | B25: ASSENTAMENTO DE TUBO DE FERRO FUNDIDO PARA REDE DE ÁGUA, DN 150 MM, JUNTA ELÁSTICA, INSTALADO EM LOCAL COM NÍVEL BAIXO DE INTERFERÊNCIAS (NÃO INCLUI FORNECIMENTO). AF_11/2017 | C25: M | D25: 4,63 | E25: 4,99 | G25: 4.63 | H25: 4.99 | I25: Sinapi 97159
A26: 97160 | B26: ASSENTAMENTO DE TUBO DE FERRO FUNDIDO PARA REDE DE ÁGUA, DN 200 MM, JUNTA ELÁSTICA, INSTALADO EM LOCAL COM NÍVEL BAIXO DE INTERFERÊNCIAS (NÃO INCLUI FORNECIMENTO). AF_11/2017 | C26: M | D26: 5,60 | E26: 6,03 | G26: 5.6 | H26: 6.03 | I26: Sinapi 97160
A27: 97161 | B27: ASSENTAMENTO DE TUBO DE FERRO FUNDIDO PARA REDE DE ÁGUA, DN 250 MM, JUNTA ELÁSTICA, INSTALADO EM LOCAL COM NÍVEL BAIXO DE INTERFERÊNCIAS (NÃO INCLUI FORNECIMENTO). AF_11/2017 | C27: M | D27: 6,57 | E27: 7,10 | G27: 6.57 | H27: 7.1 | I27: Sinapi 97161
A28: 97162 | B28: ASSENTAMENTO DE TUBO DE FERRO FUNDIDO PARA REDE DE ÁGUA, DN 300 MM, JUNTA ELÁSTICA, INSTALADO EM LOCAL COM NÍVEL BAIXO DE INTERFERÊNCIAS (NÃO INCLUI FORNECIMENTO). AF_11/2017 | C28: M | D28: 7,55 | E28: 8,15 | G28: 7.55 | H28: 8.15 | I28: Sinapi 97162
A29: 97163 | B29: ASSENTAMENTO DE TUBO DE FERRO FUNDIDO PARA REDE DE ÁGUA, DN 350 MM, JUNTA ELÁSTICA, INSTALADO EM LOCAL COM NÍVEL BAIXO DE INTERFERÊNCIAS (NÃO INCLUI FORNECIMENTO). AF_11/2017 | C29: M | D29: 8,54 | E29: 9,21 | G29: 8.54 | H29: 9.21 | I29: Sinapi 97163
A30: 97164 | B30: ASSENTAMENTO DE TUBO DE FERRO FUNDIDO PARA REDE DE ÁGUA, DN 400 MM, JUNTA ELÁSTICA, INSTALADO EM LOCAL COM NÍVEL BAIXO DE INTERFERÊNCIAS (NÃO INCLUI FORNECIMENTO). AF_11/2017 | C30: M | D30: 9,51 | E30: 10,27 | G30: 9.51 | H30: 10.27 | I30: Sinapi 97164
A31: 97165 | B31: ASSENTAMENTO DE TUBO DE FERRO FUNDIDO PARA REDE DE ÁGUA, DN 450 MM, JUNTA ELÁSTICA, INSTALADO EM LOCAL COM NÍVEL BAIXO DE INTERFERÊNCIAS (NÃO INCLUI FORNECIMENTO). AF_11/2017 | C31: M | D31: 10,51 | E31: 11,35 | G31: 10.51 | H31: 11.35 | I31: Sinapi 97165
A32: 97166 | B32: ASSENTAMENTO DE TUBO DE FERRO FUNDIDO PARA REDE DE ÁGUA, DN 500 MM, JUNTA ELÁSTICA, INSTALADO EM LOCAL COM NÍVEL BAIXO DE INTERFERÊNCIAS (NÃO INCLUI FORNECIMENTO). AF_11/2017 | C32: M | D32: 12,71 | E32: 13,64 | G32: 12.71 | H32: 13.64 | I32: Sinapi 97166
A33: 97167 | B33: ASSENTAMENTO DE TUBO DE FERRO FUNDIDO PARA REDE DE ÁGUA, DN 600 MM, JUNTA ELÁSTICA, INSTALADO EM LOCAL COM NÍVEL BAIXO DE INTERFERÊNCIAS (NÃO INCLUI FORNECIMENTO). AF_11/2017 | C33: M | D33: 14,89 | E33: 15,97 | G33: 14.89 | H33: 15.97 | I33: Sinapi 97167
A34: 97168 | B34: ASSENTAMENTO DE TUBO DE FERRO FUNDIDO PARA REDE DE ÁGUA, DN 700 MM, JUNTA ELÁSTICA, INSTALADO EM LOCAL COM NÍVEL BAIXO DE INTERFERÊNCIAS (NÃO INCLUI FORNECIMENTO). AF_11/2017 | C34: M | D34: 16,87 | E34: 18,11 | G34: 16.87 | H34: 18.11 | I34: Sinapi 97168
A35: 97169 | B35: ASSENTAMENTO DE TUBO DE FERRO FUNDIDO PARA REDE DE ÁGUA, DN 800 MM, JUNTA ELÁSTICA, INSTALADO EM LOCAL COM NÍVEL BAIXO DE INTERFERÊNCIAS (NÃO INCLUI FORNECIMENTO). AF_11/2017 | C35: M | D35: 18,95 | E35: 20,35 | G35: 18.95 | H35: 20.35 | I35: Sinapi 97169
A36: 97170 | B36: ASSENTAMENTO DE TUBO DE FERRO FUNDIDO PARA REDE DE ÁGUA, DN 900 MM, JUNTA ELÁSTICA, INSTALADO EM LOCAL COM NÍVEL BAIXO DE INTERFERÊNCIAS (NÃO INCLUI FORNECIMENTO). AF_11/2017 | C36: M | D36: 21,07 | E36: 22,63 | G36: 21.07 | H36: 22.63 | I36: Sinapi 97170
A37: 97171 | B37: ASSENTAMENTO DE TUBO DE FERRO FUNDIDO PARA REDE DE ÁGUA, DN 1000 MM, JUNTA ELÁSTICA, INSTALADO EM LOCAL COM NÍVEL BAIXO DE INTERFERÊNCIAS (NÃO INCLUI FORNECIMENTO). AF_11/2017 | C37: M | D37: 23,20 | E37: 24,92 | G37: 23.2 | H37: 24.92 | I37: Sinapi 97171
A38: 97172 | B38: ASSENTAMENTO DE TUBO DE FERRO FUNDIDO PARA REDE DE ÁGUA, DN 1200 MM, JUNTA ELÁSTICA, INSTALADO EM LOCAL COM NÍVEL BAIXO DE INTERFERÊNCIAS (NÃO INCLUI FORNECIMENTO). AF_11/2017 | C38: M | D38: 27,77 | E38: 29,81 | G38: 27.77 | H38: 29.81 | I38: Sinapi 97172
A39: 97173 | B39: ASSENTAMENTO DE TUBO DE AÇO CARBONO PARA REDE DE ÁGUA, DN 600 MM (24), JUNTA SOLDADA, INSTALADO EM LOCAL COM NÍVEL ALTO DE INTERFERÊNCIAS (NÃO INCLUI FORNECIMENTO). AF_11/2017 | C39: M | D39: 23,65 | E39: 25,38 | G39: 23.65 | H39: 25.38 | I39: Sinapi 97173
A40: 97174 | B40: ASSENTAMENTO DE TUBO DE AÇO CARBONO PARA REDE DE ÁGUA, DN 700 MM (28), JUNTA SOLDADA, INSTALADO EM LOCAL COM NÍVEL ALTO DE INTERFERÊNCIAS (NÃO INCLUI FORNECIMENTO). AF_11/2017 | C40: M | D40: 27,36 | E40: 29,35 | G40: 27.36 | H40: 29.35 | I40: Sinapi 97174
A41: 97175 | B41: ASSENTAMENTO DE TUBO DE AÇO CARBONO PARA REDE DE ÁGUA, DN 800 MM (32), JUNTA SOLDADA, INSTALADO EM LOCAL COM NÍVEL ALTO DE INTERFERÊNCIAS (NÃO INCLUI FORNECIMENTO). AF_11/2017 | C41: M | D41: 31,06 | E41: 33,32 | G41: 31.06 | H41: 33.32 | I41: Sinapi 97175
A42: 97176 | B42: ASSENTAMENTO DE TUBO DE AÇO CARBONO PARA REDE DE ÁGUA, DN 900 MM (36), JUNTA SOLDADA, INSTALADO EM LOCAL COM NÍVEL ALTO DE INTERFERÊNCIAS (NÃO INCLUI FORNECIMENTO). AF_11/2017 | C42: M | D42: 34,77 | E42: 37,29 | G42: 34.77 | H42: 37.29 | I42: Sinapi 97176
A43: 97177 | B43: ASSENTAMENTO DE TUBO DE AÇO CARBONO PARA REDE DE ÁGUA, DN 1000 MM (40) OU DN 1100 MM (44), JUNTA SOLDADA, INSTALADO EM LOCAL COM NÍVEL ALTO DE INTERFERÊNCIAS (NÃO INCLUI FORNECIMENTO). AF_11/2017 | C43: M | D43: 42,21 | E43: 45,24 | G43: 42.21 | H43: 45.24 | I43: Sinapi 97177
A44: 97178 | B44: ASSENTAMENTO DE TUBO DE AÇO CARBONO PARA REDE DE ÁGUA, DN 1200 MM (48) OU DN 1300 MM (52), JUNTA SOLDADA, INSTALADO EM LOCAL COM NÍVEL ALTO DE INTERFERÊNCIAS (NÃO INCLUI FORNECIMENTO). AF_11/2017 | C44: M | D44: 49,62 | E44: 53,18 | G44: 49.62 | H44: 53.18 | I44: Sinapi 97178
A45: 97179 | B45: ASSENTAMENTO DE TUBO DE AÇO CARBONO PARA REDE DE ÁGUA, DN 1400 MM (56'') OU DN 1500 MM (60), JUNTA SOLDADA, INSTALADO EM LOCAL COM NÍVEL ALTO DE INTERFERÊNCIAS (NÃO INCLUI FORNECIMENTO). AF_11/2017 | C45: M | D45: 57,05 | E45: 61,14 | G45: 57.05 | H45: 61.14 | I45: Sinapi 97179
A46: 97180 | B46: ASSENTAMENTO DE TUBO DE AÇO CARBONO PARA REDE DE ÁGUA, DN 1600 MM (64) OU DN 1700 MM (68), JUNTA SOLDADA, INSTALADO EM LOCAL COM NÍVEL ALTO DE INTERFERÊNCIAS (NÃO INCLUI FORNECIMENTO). AF_11/2017 | C46: M | D46: 64,47 | E46: 69,08 | G46: 64.47 | H46: 69.08 | I46: Sinapi 97180
A47: 97181 | B47: ASSENTAMENTO DE TUBO DE AÇO CARBONO PARA REDE DE ÁGUA, DN 1800 MM (72) OU DN 1900 MM (76), JUNTA SOLDADA, INSTALADO EM LOCAL COM NÍVEL ALTO DE INTERFERÊNCIAS (NÃO INCLUI FORNECIMENTO). AF_11/2017 | C47: M | D47: 74,32 | E47: 79,47 | G47: 74.32 | H47: 79.47 | I47: Sinapi 97181
A48: 97182 | B48: ASSENTAMENTO DE TUBO DE AÇO CARBONO PARA REDE DE ÁGUA, DN 2000 MM (80) OU DN 2100 MM (84), JUNTA SOLDADA, INSTALADO EM LOCAL COM NÍVEL ALTO DE INTERFERÊNCIAS (NÃO INCLUI FORNECIMENTO). AF_11/2017 | C48: M | D48: 82,00 | E48: 87,69 | G48: 82 | H48: 87.69 | I48: Sinapi 97182
A49: 97183 | B49: ASSENTAMENTO DE TUBO DE AÇO CARBONO PARA REDE DE ÁGUA, DN 600 MM (24), JUNTA SOLDADA, INSTALADO EM LOCAL COM NÍVEL BAIXO DE INTERFERÊNCIAS (NÃO INCLUI FORNECIMENTO). AF_11/2017 | C49: M | D49: 19,55 | E49: 21,00 | G49: 19.55 | H49: 21 | I49: Sinapi 97183
A50: 97184 | B50: ASSENTAMENTO DE TUBO DE AÇO CARBONO PARA REDE DE ÁGUA, DN 700 MM (28), JUNTA SOLDADA, INSTALADO EM LOCAL COM NÍVEL BAIXO DE INTERFERÊNCIAS (NÃO INCLUI FORNECIMENTO). AF_11/2017 | C50: M | D50: 22,66 | E50: 24,35 | G50: 22.66 | H50: 24.35 | I50: Sinapi 97184
A51: 97185 | B51: ASSENTAMENTO DE TUBO DE AÇO CARBONO PARA REDE DE ÁGUA, DN 800 MM (32), JUNTA SOLDADA, INSTALADO EM LOCAL COM NÍVEL BAIXO DE INTERFERÊNCIAS (NÃO INCLUI FORNECIMENTO). AF_11/2017 | C51: M | D51: 25,79 | E51: 27,69 | G51: 25.79 | H51: 27.69 | I51: Sinapi 97185
A52: 97186 | B52: ASSENTAMENTO DE TUBO DE AÇO CARBONO PARA REDE DE ÁGUA, DN 900 MM (36), JUNTA SOLDADA, INSTALADO EM LOCAL COM NÍVEL BAIXO DE INTERFERÊNCIAS (NÃO INCLUI FORNECIMENTO). AF_11/2017 | C52: M | D52: 28,91 | E52: 31,04 | G52: 28.91 | H52: 31.04 | I52: Sinapi 97186
A53: 97187 | B53: ASSENTAMENTO DE TUBO DE AÇO CARBONO PARA REDE DE ÁGUA, DN 1000 MM (40 ) OU DN 1100 MM (44 ), JUNTA SOLDADA, INSTALADO EM LOCAL COM NÍVEL BAIXO DE INTERFERÊNCIAS (NÃO INCLUI FORNECIMENTO). AF_11/2017 | C53: M | D53: 35,15 | E53: 37,73 | G53: 35.15 | H53: 37.73 | I53: Sinapi 97187
A54: 97188 | B54: ASSENTAMENTO DE TUBO DE AÇO CARBONO PARA REDE DE ÁGUA, DN 1200 MM (48) OU DN 1300 MM (52), JUNTA SOLDADA, INSTALADO EM LOCAL COM NÍVEL BAIXO DE INTERFERÊNCIAS (NÃO INCLUI FORNECIMENTO). AF_11/2017 | C54: M | D54: 41,38 | E54: 44,41 | G54: 41.38 | H54: 44.41 | I54: Sinapi 97188
A55: 97189 | B55: ASSENTAMENTO DE TUBO DE AÇO CARBONO PARA REDE DE ÁGUA, DN 1400 MM (56'') OU DN 1500 MM (60), JUNTA SOLDADA, INSTALADO EM LOCAL COM NÍVEL BAIXO DE INTERFERÊNCIAS (NÃO INCLUI FORNECIMENTO). AF_11/2017 | C55: M | D55: 47,63 | E55: 51,12 | G55: 47.63 | H55: 51.12 | I55: Sinapi 97189
A56: 97190 | B56: ASSENTAMENTO DE TUBO DE AÇO CARBONO PARA REDE DE ÁGUA, DN 1600 MM (64) OU DN 1700 MM (68), JUNTA SOLDADA, INSTALADO EM LOCAL COM NÍVEL BAIXO DE INTERFERÊNCIAS (NÃO INCLUI FORNECIMENTO). AF_11/2017 | C56: M | D56: 53,86 | E56: 57,81 | G56: 53.86 | H56: 57.81 | I56: Sinapi 97190
A57: 97191 | B57: ASSENTAMENTO DE TUBO DE AÇO CARBONO PARA REDE DE ÁGUA, DN 1800 MM (72) OU DN 1900 MM (76), JUNTA SOLDADA, INSTALADO EM LOCAL COM NÍVEL BAIXO DE INTERFERÊNCIAS (NÃO INCLUI FORNECIMENTO). AF_11/2017 | C57: M | D57: 61,97 | E57: 66,37 | G57: 61.97 | H57: 66.37 | I57: Sinapi 97191
A58: 97192 | B58: ASSENTAMENTO DE TUBO DE AÇO CARBONO PARA REDE DE ÁGUA, DN 2000 MM (80) OU DN 2100 MM (84), JUNTA SOLDADA, INSTALADO EM LOCAL COM NÍVEL BAIXO DE INTERFERÊNCIAS (NÃO INCLUI FORNECIMENTO). AF_11/2017 | C58: M | D58: 68,42 | E58: 73,27 | G58: 68.42 | H58: 73.27 | I58: Sinapi 97192
A59: 90694 | B59: TUBO DE PVC PARA REDE COLETORA DE ESGOTO DE PAREDE MACIÇA, DN 100 MM, JUNTA ELÁSTICA, INSTALADO EM LOCAL COM NÍVEL BAIXO DE INTERFERÊNCIAS - FORNECIMENTO E ASSENTAMENTO. AF_06/2015 | C59: M | D59: 21,13 | E59: 21,32 | G59: 21.13 | H59: 21.32 | I59: Sinapi 90694
A60: 90695 | B60: TUBO DE PVC PARA REDE COLETORA DE ESGOTO DE PAREDE MACIÇA, DN 150 MM, JUNTA ELÁSTICA, INSTALADO EM LOCAL COM NÍVEL BAIXO DE INTERFERÊNCIAS - FORNECIMENTO E ASSENTAMENTO. AF_06/2015 | C60: M | D60: 43,69 | E60: 43,92 | G60: 43.69 | H60: 43.92 | I60: Sinapi 90695
A61: 90696 | B61: TUBO DE PVC PARA REDE COLETORA DE ESGOTO DE PAREDE MACIÇA, DN 200 MM, JUNTA ELÁSTICA, INSTALADO EM LOCAL COM NÍVEL BAIXO DE INTERFERÊNCIAS - FORNECIMENTO E ASSENTAMENTO. AF_06/2015 | C61: M | D61: 64,78 | E61: 65,06 | G61: 64.78 | H61: 65.06 | I61: Sinapi 90696
A62: 90697 | B62: TUBO DE PVC PARA REDE COLETORA DE ESGOTO DE PAREDE MACIÇA, DN 250 MM, JUNTA ELÁSTICA, INSTALADO EM LOCAL COM NÍVEL BAIXO DE INTERFERÊNCIAS - FORNECIMENTO E ASSENTAMENTO. AF_06/2015 | C62: M | D62: 108,84 | E62: 109,16 | G62: 108.84 | H62: 109.16 | I62: Sinapi 90697
A63: 90698 | B63: TUBO DE PVC PARA REDE COLETORA DE ESGOTO DE PAREDE MACIÇA, DN 300 MM, JUNTA ELÁSTICA, INSTALADO EM LOCAL COM NÍVEL BAIXO DE INTERFERÊNCIAS - FORNECIMENTO E ASSENTAMENTO. AF_06/2015 | C63: M | D63: 174,13 | E63: 174,50 | G63: 174.13 | H63: 174.5 | I63: Sinapi 90698
A64: 90699 | B64: TUBO DE PVC PARA REDE COLETORA DE ESGOTO DE PAREDE MACIÇA, DN 350 MM, JUNTA ELÁSTICA, INSTALADO EM LOCAL COM NÍVEL BAIXO DE INTERFERÊNCIAS - FORNECIMENTO E ASSENTAMENTO. AF_06/2015 | C64: M | D64: 215,20 | E64: 215,61 | G64: 215.2 | H64: 215.61 | I64: Sinapi 90699
A65: 90700 | B65: TUBO DE PVC PARA REDE COLETORA DE ESGOTO DE PAREDE MACIÇA, DN 400 MM, JUNTA ELÁSTICA, INSTALADO EM LOCAL COM NÍVEL BAIXO DE INTERFERÊNCIAS - FORNECIMENTO E ASSENTAMENTO. AF_06/2015 | C65: M | D65: 282,76 | E65: 283,39 | G65: 282.76 | H65: 283.39 | I65: Sinapi 90700
A66: 90701 | B66: TUBO DE PVC CORRUGADO DE DUPLA PAREDE PARA REDE COLETORA DE ESGOTO, DN 150 MM, JUNTA ELÁSTICA, INSTALADO EM LOCAL COM NÍVEL BAIXO DE INTERFERÊNCIAS - FORNECIMENTO E ASSENTAMENTO. AF_06/2015 | C66: M | D66: 37,78 | E66: 38,22 | G66: 37.78 | H66: 38.22 | I66: Sinapi 90701
A67: 90702 | B67: TUBO DE PVC CORRUGADO DE DUPLA PAREDE PARA REDE COLETORA DE ESGOTO, DN 200 MM, JUNTA ELÁSTICA, INSTALADO EM LOCAL COM NÍVEL BAIXO DE INTERFERÊNCIAS - FORNECIMENTO E ASSENTAMENTO. AF_06/2015 | C67: M | D67: 58,83 | E67: 59,31 | G67: 58.83 | H67: 59.31 | I67: Sinapi 90702
A68: 90703 | B68: TUBO DE PVC CORRUGADO DE DUPLA PAREDE PARA REDE COLETORA DE ESGOTO, DN 250 MM, JUNTA ELÁSTICA, INSTALADO EM LOCAL COM NÍVEL BAIXO DE INTERFERÊNCIAS - FORNECIMENTO E ASSENTAMENTO. AF_06/2015 | C68: M | D68: 95,17 | E68: 95,69 | G68: 95.17 | H68: 95.69 | I68: Sinapi 90703
A69: 90704 | B69: TUBO DE PVC CORRUGADO DE DUPLA PAREDE PARA REDE COLETORA DE ESGOTO, DN 300 MM, JUNTA ELÁSTICA, INSTALADO EM LOCAL COM NÍVEL BAIXO DE INTERFERÊNCIAS - FORNECIMENTO E ASSENTAMENTO. AF_06/2015 | C69: M | D69: 130,76 | E69: 131,33 | G69: 130.76 | H69: 131.33 | I69: Sinapi 90704
A70: 90705 | B70: TUBO DE PVC CORRUGADO DE DUPLA PAREDE PARA REDE COLETORA DE ESGOTO, DN 350 MM, JUNTA ELÁSTICA, INSTALADO EM LOCAL COM NÍVEL BAIXO DE INTERFERÊNCIAS - FORNECIMENTO E ASSENTAMENTO. AF_06/2015 | C70: M | D70: 183,15 | E70: 183,75 | G70: 183.15 | H70: 183.75 | I70: Sinapi 90705
A71: 90706 | B71: TUBO DE PVC CORRUGADO DE DUPLA PAREDE PARA REDE COLETORA DE ESGOTO, DN 400 MM, JUNTA ELÁSTICA, INSTALADO EM LOCAL COM NÍVEL BAIXO DE INTERFERÊNCIAS - FORNECIMENTO E ASSENTAMENTO. AF_06/2015 | C71: M | D71: 219,58 | E71: 220,47 | G71: 219.58 | H71: 220.47 | I71: Sinapi 90706
A72: 90708 | B72: TUBO DE PEAD CORRUGADO DE DUPLA PAREDE PARA REDE COLETORA DE ESGOTO, DN 600 MM, JUNTA ELÁSTICA INTEGRADA, INSTALADO EM LOCAL COM NÍVEL BAIXO DE INTERFERÊNCIAS - FORNECIMENTO E ASSENTAMENTO. AF_06/2015 | C72: M | D72: 591,44 | E72: 592,03 | G72: =IF(D72="","",D72+0) -> 591.44 | H72: =IF(E72="","",E72+0) -> 592.03 | I72: =IF(OR(G72="",H72=""),"",CONCATENATE("Sinapi ",A72)) -> Sinapi 90708
A73: 90709 | B73: TUBO DE PVC PARA REDE COLETORA DE ESGOTO DE PAREDE MACIÇA, DN 100 MM, JUNTA ELÁSTICA, INSTALADO EM LOCAL COM NÍVEL ALTO DE INTERFERÊNCIAS - FORNECIMENTO E ASSENTAMENTO. AF_06/2015 | C73: M | D73: 22,60 | E73: 22,95 | G73: 22.6 | H73: 22.95 | I73: Sinapi 90709
A74: 90710 | B74: TUBO DE PVC PARA REDE COLETORA DE ESGOTO DE PAREDE MACIÇA, DN 150 MM, JUNTA ELÁSTICA, INSTALADO EM LOCAL COM NÍVEL ALTO DE INTERFERÊNCIAS - FORNECIMENTO E ASSENTAMENTO. AF_06/2015 | C74: M | D74: 45,16 | E74: 45,55 | G74: 45.16 | H74: 45.55 | I74: Sinapi 90710
A75: 90711 | B75: TUBO DE PVC PARA REDE COLETORA DE ESGOTO DE PAREDE MACIÇA, DN 200 MM, JUNTA ELÁSTICA, INSTALADO EM LOCAL COM NÍVEL ALTO DE INTERFERÊNCIAS - FORNECIMENTO E ASSENTAMENTO. AF_06/2015 | C75: M | D75: 66,25 | E75: 66,68 | G75: 66.25 | H75: 66.68 | I75: Sinapi 90711
A76: 90712 | B76: TUBO DE PVC PARA REDE COLETORA DE ESGOTO DE PAREDE MACIÇA, DN 250 MM, JUNTA ELÁSTICA, INSTALADO EM LOCAL COM NÍVEL ALTO DE INTERFERÊNCIAS - FORNECIMENTO E ASSENTAMENTO. AF_06/2015 | C76: M | D76: 110,31 | E76: 110,79 | G76: 110.31 | H76: 110.79 | I76: Sinapi 90712
A77: 90713 | B77: TUBO DE PVC PARA REDE COLETORA DE ESGOTO DE PAREDE MACIÇA, DN 300 MM, JUNTA ELÁSTICA, INSTALADO EM LOCAL COM NÍVEL ALTO DE INTERFERÊNCIAS - FORNECIMENTO E ASSENTAMENTO. AF_06/2015 | C77: M | D77: 175,60 | E77: 176,12 | G77: 175.6 | H77: 176.12 | I77: Sinapi 90713
A78: 90714 | B78: TUBO DE PVC PARA REDE COLETORA DE ESGOTO DE PAREDE MACIÇA, DN 350 MM, JUNTA ELÁSTICA, INSTALADO EM LOCAL COM NÍVEL ALTO DE INTERFERÊNCIAS - FORNECIMENTO E ASSENTAMENTO. AF_06/2015 | C78: M | D78: 216,67 | E78: 217,24 | G78: 216.67 | H78: 217.24 | I78: Sinapi 90714
A79: 90715 | B79: TUBO DE PVC PARA REDE COLETORA DE ESGOTO DE PAREDE MACIÇA, DN 400 MM, JUNTA ELÁSTICA, INSTALADO EM LOCAL COM NÍVEL ALTO DE INTERFERÊNCIAS - FORNECIMENTO E ASSENTAMENTO. AF_06/2015 | C79: M | D79: 285,89 | E79: 286,73 | G79: 285.89 | H79: 286.73 | I79: Sinapi 90715
A80: 90716 | B80: TUBO DE PVC CORRUGADO DE DUPLA PAREDE PARA REDE COLETORA DE ESGOTO, DN 150 MM, JUNTA ELÁSTICA, INSTALADO EM LOCAL COM NÍVEL ALTO DE INTERFERÊNCIAS - FORNECIMENTO E ASSENTAMENTO. AF_06/2015 | C80: M | D80: 39,25 | E80: 39,84 | G80: 39.25 | H80: 39.84 | I80: Sinapi 90716
A81: 90717 | B81: TUBO DE PVC CORRUGADO DE DUPLA PAREDE PARA REDE COLETORA DE ESGOTO, DN 200 MM, JUNTA ELÁSTICA, INSTALADO EM LOCAL COM NÍVEL ALTO DE INTERFERÊNCIAS - FORNECIMENTO E ASSENTAMENTO. AF_06/2015 | C81: M | D81: 60,29 | E81: 60,92 | G81: 60.29 | H81: 60.92 | I81: Sinapi 90717
A82: 90718 | B82: TUBO DE PVC CORRUGADO DE DUPLA PAREDE PARA REDE COLETORA DE ESGOTO, DN 250 MM, JUNTA ELÁSTICA, INSTALADO EM LOCAL COM NÍVEL ALTO DE INTERFERÊNCIAS - FORNECIMENTO E ASSENTAMENTO. AF_06/2015 | C82: M | D82: 96,65 | E82: 97,32 | G82: 96.65 | H82: 97.32 | I82: Sinapi 90718
A83: 90719 | B83: TUBO DE PVC CORRUGADO DE DUPLA PAREDE PARA REDE COLETORA DE ESGOTO, DN 300 MM, JUNTA ELÁSTICA, INSTALADO EM LOCAL COM NÍVEL ALTO DE INTERFERÊNCIAS - FORNECIMENTO E ASSENTAMENTO. AF_06/2015 | C83: M | D83: 132,24 | E83: 132,95 | G83: 132.24 | H83: 132.95 | I83: Sinapi 90719
A84: 90720 | B84: TUBO DE PVC CORRUGADO DE DUPLA PAREDE PARA REDE COLETORA DE ESGOTO, DN 350 MM, JUNTA ELÁSTICA, INSTALADO EM LOCAL COM NÍVEL ALTO DE INTERFERÊNCIAS - FORNECIMENTO E ASSENTAMENTO. AF_06/2015 | C84: M | D84: 184,62 | E84: 185,38 | G84: 184.62 | H84: 185.38 | I84: Sinapi 90720
A85: 90721 | B85: TUBO DE PVC CORRUGADO DE DUPLA PAREDE PARA REDE COLETORA DE ESGOTO, DN 400 MM, EM JUNTA ELÁSTICA, INSTALADO EM LOCAL COM NÍVEL ALTO DE INTERFERÊNCIAS - FORNECIMENTO E ASSENTAMENTO. AF_06/2015 | C85: M | D85: 222,70 | E85: 223,81 | G85: 222.7 | H85: 223.81 | I85: Sinapi 90721
A86: 90723 | B86: TUBO DE PEAD CORRUGADO DE DUPLA PAREDE PARA REDE COLETORA DE ESGOTO, DN 600 MM, JUNTA ELÁSTICA INTEGRADA, INSTALADO EM LOCAL COM NÍVEL ALTO DE INTERFERÊNCIAS - FORNECIMENTO E ASSENTAMENTO. AF_06/2015 | C86: M | D86: 593,38 | E86: 594,06 | G86: 593.38 | H86: 594.06 | I86: Sinapi 90723
A87: 90724 | B87: JUNTA ARGAMASSADA ENTRE TUBO DN 100 MM E O POÇO DE VISITA/ CAIXA DE CONCRETO OU ALVENARIA EM REDES DE ESGOTO. AF_06/2015 | C87: UN | D87: 17,41 | E87: 19,11 | G87: 17.41 | H87: 19.11 | I87: Sinapi 90724
A88: 90725 | B88: JUNTA ARGAMASSADA ENTRE TUBO DN 150 MM E O POÇO DE VISITA/ CAIXA DE CONCRETO OU ALVENARIA EM REDES DE ESGOTO. AF_06/2015 | C88: UN | D88: 21,54 | E88: 23,62 | G88: 21.54 | H88: 23.62 | I88: Sinapi 90725
A89: 90726 | B89: JUNTA ARGAMASSADA ENTRE TUBO DN 200 MM E O POÇO/ CAIXA DE CONCRETO OU ALVENARIA EM REDES DE ESGOTO. AF_06/2015 | C89: UN | D89: 25,67 | E89: 28,14 | G89: 25.67 | H89: 28.14 | I89: Sinapi 90726
A90: 90727 | B90: JUNTA ARGAMASSADA ENTRE TUBO DN 250 MM E O POÇO DE VISITA/ CAIXA DE CONCRETO OU ALVENARIA EM REDES DE ESGOTO. AF_06/2015 | C90: UN | D90: 29,81 | E90: 32,66 | G90: 29.81 | H90: 32.66 | I90: Sinapi 90727
A91: 90728 | B91: JUNTA ARGAMASSADA ENTRE TUBO DN 300 MM E O POÇO DE VISITA/ CAIXA DE CONCRETO OU ALVENARIA EM REDES DE ESGOTO. AF_06/2015 | C91: UN | D91: 33,93 | E91: 37,18 | G91: 33.93 | H91: 37.18 | I91: Sinapi 90728
A92: 90729 | B92: JUNTA ARGAMASSADA ENTRE TUBO DN 350 MM E O POÇO DE VISITA/ CAIXA DE CONCRETO OU ALVENARIA EM REDES DE ESGOTO. AF_06/2015 | C92: UN | D92: 38,07 | E92: 41,69 | G92: 38.07 | H92: 41.69 | I92: Sinapi 90729
A93: 90730 | B93: JUNTA ARGAMASSADA ENTRE TUBO DN 400 MM E O POÇO DE VISITA/ CAIXA DE CONCRETO OU ALVENARIA EM REDES DE ESGOTO. AF_06/2015 | C93: UN | D93: 42,25 | E93: 46,25 | G93: 42.25 | H93: 46.25 | I93: Sinapi 90730
A94: 90731 | B94: JUNTA ARGAMASSADA ENTRE TUBO DN 450 MM E O POÇO DE VISITA/ CAIXA DE CONCRETO OU ALVENARIA EM REDES DE ESGOTO. AF_06/2015 | C94: UN | D94: 46,38 | E94: 50,76 | G94: 46.38 | H94: 50.76 | I94: Sinapi 90731
A95: 90732 | B95: JUNTA ARGAMASSADA ENTRE TUBO DN 600 MM E O POÇO DE VISITA/ CAIXA DE CONCRETO OU ALVENARIA EM REDES DE ESGOTO. AF_06/2015 | C95: UN | D95: 58,76 | E95: 64,31 | G95: 58.76 | H95: 64.31 | I95: Sinapi 90732
A96: 90733 | B96: ASSENTAMENTO DE TUBO DE PVC PARA REDE COLETORA DE ESGOTO DE PAREDE MACIÇA, DN 100 MM, JUNTA ELÁSTICA, INSTALADO EM LOCAL COM NÍVEL BAIXO DE INTERFERÊNCIAS (NÃO INCLUI FORNECIMENTO). AF_06/2015 | C96: M | D96: 1,85 | E96: 2,04 | G96: 1.85 | H96: 2.04 | I96: Sinapi 90733
A97: 90734 | B97: ASSENTAMENTO DE TUBO DE PVC PARA REDE COLETORA DE ESGOTO DE PAREDE MACIÇA, DN 150 MM, JUNTA ELÁSTICA, INSTALADO EM LOCAL COM NÍVEL BAIXO DE INTERFERÊNCIAS (NÃO INCLUI FORNECIMENTO). AF_06/2015 | C97: M | D97: 2,26 | E97: 2,49 | G97: 2.26 | H97: 2.49 | I97: Sinapi 90734
A98: 90735 | B98: ASSENTAMENTO DE TUBO DE PVC PARA REDE COLETORA DE ESGOTO DE PAREDE MACIÇA, DN 200 MM, JUNTA ELÁSTICA, INSTALADO EM LOCAL COM NÍVEL BAIXO DE INTERFERÊNCIAS (NÃO INCLUI FORNECIMENTO). AF_06/2015 | C98: M | D98: 2,68 | E98: 2,96 | G98: 2.68 | H98: 2.96 | I98: Sinapi 90735
A99: 90736 | B99: ASSENTAMENTO DE TUBO DE PVC PARA REDE COLETORA DE ESGOTO DE PAREDE MACIÇA, DN 250 MM, JUNTA ELÁSTICA, INSTALADO EM LOCAL COM NÍVEL BAIXO DE INTERFERÊNCIAS (NÃO INCLUI FORNECIMENTO). AF_06/2015 | C99: M | D99: 3,10 | E99: 3,42 | G99: 3.1 | H99: 3.42 | I99: Sinapi 90736
A100: 90737 | B100: ASSENTAMENTO DE TUBO DE PVC PARA REDE COLETORA DE ESGOTO DE PAREDE MACIÇA, DN 300 MM, JUNTA ELÁSTICA, INSTALADO EM LOCAL COM NÍVEL BAIXO DE INTERFERÊNCIAS (NÃO INCLUI FORNECIMENTO). AF_06/2015 | C100: M | D100: 3,51 | E100: 3,88 | G100: 3.51 | H100: 3.88 | I100: Sinapi 90737
A101: 90738 | B101: ASSENTAMENTO DE TUBO DE PVC PARA REDE COLETORA DE ESGOTO DE PAREDE MACIÇA, DN 350 MM, JUNTA ELÁSTICA, INSTALADO EM LOCAL COM NÍVEL BAIXO DE INTERFERÊNCIAS (NÃO INCLUI FORNECIMENTO). AF_06/2015 | C101: M | D101: 3,92 | E101: 4,33 | G101: 3.92 | H101: 4.33 | I101: Sinapi 90738
A102: 90739 | B102: ASSENTAMENTO DE TUBO DE PVC PARA REDE COLETORA DE ESGOTO DE PAREDE MACIÇA, DN 400 MM, JUNTA ELÁSTICA, INSTALADO EM LOCAL COM NÍVEL BAIXO DE INTERFERÊNCIAS (NÃO INCLUI FORNECIMENTO). AF_06/2015 | C102: M | D102: 9,21 | E102: 9,84 | G102: 9.21 | H102: 9.84 | I102: Sinapi 90739
A103: 90740 | B103: ASSENTAMENTO DE TUBO DE PVC CORRUGADO DE DUPLA PAREDE PARA REDE COLETORA DE ESGOTO, DN 150 MM, JUNTA ELÁSTICA, INSTALADO EM LOCAL COM NÍVEL BAIXO DE INTERFERÊNCIAS (NÃO INCLUI FORNECIMENTO). AF_06/2015 | C103: M | D103: 4,13 | E103: 4,57 | G103: 4.13 | H103: 4.57 | I103: Sinapi 90740
A104: 90741 | B104: ASSENTAMENTO DE TUBO DE PVC CORRUGADO DE DUPLA PAREDE PARA REDE COLETORA DE ESGOTO, DN 200 MM, JUNTA ELÁSTICA, INSTALADO EM LOCAL COM NÍVEL BAIXO DE INTERFERÊNCIAS (NÃO INCLUI FORNECIMENTO). AF_06/2015 | C104: M | D104: 4,55 | E104: 5,03 | G104: 4.55 | H104: 5.03 | I104: Sinapi 90741
A105: 90742 | B105: ASSENTAMENTO DE TUBO DE PVC CORRUGADO DE DUPLA PAREDE PARA REDE COLETORA DE ESGOTO, DN 250 MM, JUNTA ELÁSTICA, INSTALADO EM LOCAL COM NÍVEL BAIXO DE INTERFERÊNCIAS (NÃO INCLUI FORNECIMENTO). AF_06/2015 | C105: M | D105: 4,96 | E105: 5,48 | G105: 4.96 | H105: 5.48 | I105: Sinapi 90742
A106: 90743 | B106: ASSENTAMENTO DE TUBO DE PVC CORRUGADO DE DUPLA PAREDE PARA REDE COLETORA DE ESGOTO, DN 300 MM, JUNTA ELÁSTICA, INSTALADO EM LOCAL COM NÍVEL BAIXO DE INTERFERÊNCIAS (NÃO INCLUI FORNECIMENTO). AF_06/2015 | C106: M | D106: 5,37 | E106: 5,94 | G106: 5.37 | H106: 5.94 | I106: Sinapi 90743
A107: 90744 | B107: ASSENTAMENTO DE TUBO DE PVC CORRUGADO DE DUPLA PAREDE PARA REDE COLETORA DE ESGOTO, DN 350 MM, JUNTA ELÁSTICA, INSTALADO EM LOCAL COM NÍVEL BAIXO DE INTERFERÊNCIAS (NÃO INCLUI FORNECIMENTO). AF_06/2015 | C107: M | D107: 5,79 | E107: 6,39 | G107: 5.79 | H107: 6.39 | I107: Sinapi 90744
A108: 90745 | B108: ASSENTAMENTO DE TUBO DE PVC CORRUGADO DE DUPLA PAREDE PARA REDE COLETORA DE ESGOTO, DN 400 MM, JUNTA ELÁSTICA, INSTALADO EM LOCAL COM NÍVEL BAIXO DE INTERFERÊNCIAS (NÃO INCLUI FORNECIMENTO). AF_06/2015 | C108: M | D108: 13,18 | E108: 14,07 | G108: 13.18 | H108: 14.07 | I108: Sinapi 90745
A109: 90746 | B109: ASSENTAMENTO DE TUBO DE PEAD CORRUGADO DE DUPLA PAREDE PARA REDE COLETORA DE ESGOTO, DN 450 MM, JUNTA ELÁSTICA INTEGRADA, INSTALADO EM LOCAL COM NÍVEL BAIXO DE INTERFERÊNCIAS (NÃO INCLUI FORNECIMENTO). AF_06/2015 | C109: M | D109: 2,52 | E109: 2,78 | G109: 2.52 | H109: 2.78 | I109: Sinapi 90746
A110: 90747 | B110: ASSENTAMENTO DE TUBO DE PEAD CORRUGADO DE DUPLA PAREDE PARA REDE COLETORA DE ESGOTO, DN 600 MM, JUNTA ELÁSTICA INTEGRADA, INSTALADO EM LOCAL COM NÍVEL BAIXO DE INTERFERÊNCIAS (NÃO INCLUI FORNECIMENTO). AF_06/2015 | C110: M | D110: 10,09 | E110: 10,68 | G110: 10.09 | H110: 10.68 | I110: Sinapi 90747
A111: 90748 | B111: ASSENTAMENTO DE TUBO DE PVC PARA REDE COLETORA DE ESGOTO DE PAREDE MACIÇA, DN 100 MM, JUNTA ELÁSTICA, INSTALADO EM LOCAL COM NÍVEL ALTO DE INTERFERÊNCIAS (NÃO INCLUI FORNECIMENTO). AF_06/2015 | C111: M | D111: 3,32 | E111: 3,67 | G111: 3.32 | H111: 3.67 | I111: Sinapi 90748
A112: 90749 | B112: ASSENTAMENTO DE TUBO DE PVC PARA REDE COLETORA DE ESGOTO DE PAREDE MACIÇA, DN 150 MM, JUNTA ELÁSTICA, INSTALADO EM LOCAL COM NÍVEL ALTO DE INTERFERÊNCIAS (NÃO INCLUI FORNECIMENTO). AF_06/2015 | C112: M | D112: 3,73 | E112: 4,12 | G112: 3.73 | H112: 4.12 | I112: Sinapi 90749
A113: 90750 | B113: ASSENTAMENTO DE TUBO DE PVC PARA REDE COLETORA DE ESGOTO DE PAREDE MACIÇA, DN 200 MM, JUNTA ELÁSTICA, INSTALADO EM LOCAL COM NÍVEL ALTO DE INTERFERÊNCIAS (NÃO INCLUI FORNECIMENTO). AF_06/2015 | C113: M | D113: 4,15 | E113: 4,58 | G113: 4.15 | H113: 4.58 | I113: Sinapi 90750
A114: 90751 | B114: ASSENTAMENTO DE TUBO DE PVC PARA REDE COLETORA DE ESGOTO DE PAREDE MACIÇA, DN 250 MM, JUNTA ELÁSTICA, INSTALADO EM LOCAL COM NÍVEL ALTO DE INTERFERÊNCIAS (NÃO INCLUI FORNECIMENTO). AF_06/2015 | C114: M | D114: 4,57 | E114: 5,05 | G114: 4.57 | H114: 5.05 | I114: Sinapi 90751
A115: 90752 | B115: ASSENTAMENTO DE TUBO DE PVC PARA REDE COLETORA DE ESGOTO DE PAREDE MACIÇA, DN 300 MM, JUNTA ELÁSTICA, INSTALADO EM LOCAL COM NÍVEL ALTO DE INTERFERÊNCIAS (NÃO INCLUI FORNECIMENTO). AF_06/2015 | C115: M | D115: 4,98 | E115: 5,50 | G115: 4.98 | H115: 5.5 | I115: Sinapi 90752
A116: 90753 | B116: ASSENTAMENTO DE TUBO DE PVC PARA REDE COLETORA DE ESGOTO DE PAREDE MACIÇA, DN 350 MM, JUNTA ELÁSTICA, INSTALADO EM LOCAL COM NÍVEL ALTO DE INTERFERÊNCIAS (NÃO INCLUI FORNECIMENTO). AF_06/2015 | C116: M | D116: 5,39 | E116: 5,96 | G116: 5.39 | H116: 5.96 | I116: Sinapi 90753
A117: 90754 | B117: ASSENTAMENTO DE TUBO DE PVC PARA REDE COLETORA DE ESGOTO DE PAREDE MACIÇA, DN 400 MM, JUNTA ELÁSTICA, INSTALADO EM LOCAL COM NÍVEL ALTO DE INTERFERÊNCIAS (NÃO INCLUI FORNECIMENTO). AF_06/2015 | C117: M | D117: 12,34 | E117: 13,18 | G117: 12.34 | H117: 13.18 | I117: Sinapi 90754
A118: 90755 | B118: ASSENTAMENTO DE TUBO DE PVC CORRUGADO DE DUPLA PAREDE PARA REDE COLETORA DE ESGOTO, DN 150 MM, JUNTA ELÁSTICA, INSTALADO EM LOCAL COM NÍVEL ALTO DE INTERFERÊNCIAS (NÃO INCLUI FORNECIMENTO). AF_06/2015 | C118: M | D118: 5,60 | E118: 6,19 | G118: 5.6 | H118: 6.19 | I118: Sinapi 90755
A119: 90756 | B119: ASSENTAMENTO DE TUBO DE PVC CORRUGADO DE DUPLA PAREDE PARA REDE COLETORA DE ESGOTO, DN 200 MM, JUNTA ELÁSTICA, INSTALADO EM LOCAL COM NÍVEL ALTO DE INTERFERÊNCIAS (NÃO INCLUI FORNECIMENTO). AF_06/2015 | C119: M | D119: 6,01 | E119: 6,64 | G119: 6.01 | H119: 6.64 | I119: Sinapi 90756
A120: 90757 | B120: ASSENTAMENTO DE TUBO DE PVC CORRUGADO DE DUPLA PAREDE PARA REDE COLETORA DE ESGOTO, DN 250 MM, JUNTA ELÁSTICA, INSTALADO EM LOCAL COM NÍVEL ALTO DE INTERFERÊNCIAS (NÃO INCLUI FORNECIMENTO). AF_06/2015 | C120: M | D120: 6,44 | E120: 7,11 | G120: 6.44 | H120: 7.11 | I120: Sinapi 90757
A121: 90758 | B121: ASSENTAMENTO DE TUBO DE PVC CORRUGADO DE DUPLA PAREDE PARA REDE COLETORA DE ESGOTO, DN 300 MM, JUNTA ELÁSTICA, INSTALADO EM LOCAL COM NÍVEL ALTO DE INTERFERÊNCIAS (NÃO INCLUI FORNECIMENTO). AF_06/2015 | C121: M | D121: 6,85 | E121: 7,56 | G121: 6.85 | H121: 7.56 | I121: Sinapi 90758
A122: 90759 | B122: ASSENTAMENTO DE TUBO DE PVC CORRUGADO DE DUPLA PAREDE PARA REDE COLETORA DE ESGOTO, DN 350 MM, JUNTA ELÁSTICA, INSTALADO EM LOCAL COM NÍVEL ALTO DE INTERFERÊNCIAS (NÃO INCLUI FORNECIMENTO). AF_06/2015 | C122: M | D122: 7,26 | E122: 8,02 | G122: 7.26 | H122: 8.02 | I122: Sinapi 90759
A123: 90760 | B123: ASSENTAMENTO DE TUBO DE PVC CORRUGADO DE DUPLA PAREDE PARA REDE COLETORA DE ESGOTO, DN 400 MM, EM JUNTA ELÁSTICA, INSTALADO EM LOCAL COM NÍVEL ALTO DE INTERFERÊNCIAS (NÃO INCLUI FORNECIMENTO). AF_06/2015 | C123: M | D123: 16,30 | E123: 17,41 | G123: 16.3 | H123: 17.41 | I123: Sinapi 90760
A124: 90761 | B124: ASSENTAMENTO DE TUBO DE PEAD CORRUGADO DE DUPLA PAREDE PARA REDE COLETORA DE ESGOTO, DN 450 MM, JUNTA ELÁSTICA INTEGRADA, INSTALADO EM LOCAL COM NÍVEL ALTO DE INTERFERÊNCIAS (NÃO INCLUI FORNECIMENTO). AF_06/2015 | C124: M | D124: 3,08 | E124: 3,40 | G124: 3.08 | H124: 3.4 | I124: Sinapi 90761
A125: 90762 | B125: ASSENTAMENTO DE TUBO DE PEAD CORRUGADO DE DUPLA PAREDE PARA REDE COLETORA DE ESGOTO, DN 600 MM, JUNTA ELÁSTICA INTEGRADA, INSTALADO EM LOCAL COM NÍVEL ALTO DE INTERFERÊNCIAS (NÃO INCLUI FORNECIMENTO). AF_06/2015 | C125: M | D125: 12,03 | E125: 12,71 | G125: 12.03 | H125: 12.71 | I125: Sinapi 90762
A126: 94869 | B126: TUBO DE PEAD CORRUGADO DE DUPLA PAREDE PARA REDE COLETORA DE ESGOTO, DN 250 MM, JUNTA ELÁSTICA INTEGRADA, INSTALADO EM LOCAL COM NÍVEL BAIXO DE INTERFERÊNCIAS - FORNECIMENTO E ASSENTAMENTO. AF_06/2016 | C126: M | D126: 120,34 | E126: 120,41 | G126: 120.34 | H126: 120.41 | I126: Sinapi 94869
A127: 94870 | B127: ASSENTAMENTO DE TUBO DE PEAD CORRUGADO DE DUPLA PAREDE PARA REDE COLETORA DE ESGOTO, DN 250 MM, JUNTA ELÁSTICA INTEGRADA, INSTALADO EM LOCAL COM NÍVEL BAIXO DE INTERFERÊNCIAS (NÃO INCLUI FORNECIMENTO). AF_06/2016 | C127: M | D127: 0,61 | E127: 0,68 | G127: 0.61 | H127: 0.68 | I127: Sinapi 94870
A128: 94871 | B128: TUBO DE PEAD CORRUGADO DE DUPLA PAREDE PARA REDE COLETORA DE ESGOTO, DN 300 MM, JUNTA ELÁSTICA INTEGRADA, INSTALADO EM LOCAL COM NÍVEL BAIXO DE INTERFERÊNCIAS - FORNECIMENTO E ASSENTAMENTO. AF_06/2016 | C128: M | D128: 142,60 | E128: 142,72 | G128: 142.6 | H128: 142.72 | I128: Sinapi 94871
A129: 94872 | B129: ASSENTAMENTO DE TUBO DE PEAD CORRUGADO DE DUPLA PAREDE PARA REDE COLETORA DE ESGOTO, DN 300 MM, JUNTA ELÁSTICA INTEGRADA, INSTALADO EM LOCAL COM NÍVEL BAIXO DE INTERFERÊNCIAS (NÃO INCLUI FORNECIMENTO). AF_06/2016 | C129: M | D129: 1,07 | E129: 1,19 | G129: 1.07 | H129: 1.19 | I129: Sinapi 94872
A130: 94875 | B130: TUBO DE PEAD CORRUGADO DE DUPLA PAREDE PARA REDE COLETORA DE ESGOTO, DN 750 MM, JUNTA ELÁSTICA INTEGRADA, INSTALADO EM LOCAL COM NÍVEL BAIXO DE INTERFERÊNCIAS - FORNECIMENTO E ASSENTAMENTO. AF_06/2016 | C130: M | D130: 835,82 | E130: 836,69 | G130: 835.82 | H130: 836.69 | I130: Sinapi 94875
A131: 94876 | B131: ASSENTAMENTO DE TUBO DE PEAD CORRUGADO DE DUPLA PAREDE PARA REDE COLETORA DE ESGOTO, DN 750 MM, JUNTA ELÁSTICA INTEGRADA, INSTALADO EM LOCAL COM NÍVEL BAIXO DE INTERFERÊNCIAS (NÃO INCLUI FORNECIMENTO). AF_06/2016 | C131: M | D131: 15,30 | E131: 16,17 | G131: 15.3 | H131: 16.17 | I131: Sinapi 94876
A132: 94878 | B132: ASSENTAMENTO DE TUBO DE PEAD CORRUGADO DE DUPLA PAREDE PARA REDE COLETORA DE ESGOTO, DN 900 MM, JUNTA ELÁSTICA INTEGRADA, INSTALADO EM LOCAL COM NÍVEL BAIXO DE INTERFERÊNCIAS (NÃO INCLUI FORNECIMENTO). AF_06/2016 | C132: M | D132: 17,95 | E132: 18,98 | G132: 17.95 | H132: 18.98 | I132: Sinapi 94878
A133: 94879 | B133: TUBO DE PEAD CORRUGADO DE DUPLA PAREDE PARA REDE COLETORA DE ESGOTO, DN 1000 MM, JUNTA ELÁSTICA INTEGRADA, INSTALADO EM LOCAL COM NÍVEL BAIXO DE INTERFERÊNCIAS - FORNECIMENTO E ASSENTAMENTO. AF_06/2016 | C133: M | D133: 1.114,07 | E133: 1.115,33 | G133: 1114.07 | H133: 1115.33 | I133: Sinapi 94879
A134: 94880 | B134: ASSENTAMENTO DE TUBO DE PEAD CORRUGADO DE DUPLA PAREDE PARA REDE COLETORA DE ESGOTO, DN 1000 MM, JUNTA ELÁSTICA INTEGRADA, INSTALADO EM LOCAL COM NÍVEL BAIXO DE INTERFERÊNCIAS (NÃO INCLUI FORNECIMENTO). AF_06/2016 | C134: M | D134: 21,99 | E134: 23,25 | G134: 21.99 | H134: 23.25 | I134: Sinapi 94880
A135: 94881 | B135: TUBO DE PEAD CORRUGADO DE DUPLA PAREDE PARA REDE COLETORA DE ESGOTO, DN 1200 MM, JUNTA ELÁSTICA INTEGRADA, INSTALADO EM LOCAL COM NÍVEL BAIXO DE INTERFERÊNCIAS - FORNECIMENTO E ASSENTAMENTO. AF_06/2016 | C135: M | D135: 1.737,62 | E135: 1.739,11 | G135: 1737.62 | H135: 1739.11 | I135: Sinapi 94881
A136: 94882 | B136: ASSENTAMENTO DE TUBO DE PEAD CORRUGADO DE DUPLA PAREDE PARA REDE COLETORA DE ESGOTO, DN 1200 MM, JUNTA ELÁSTICA INTEGRADA, INSTALADO EM LOCAL COM NÍVEL BAIXO DE INTERFERÊNCIAS (NÃO INCLUI FORNECIMENTO). AF_06/2016 | C136: M | D136: 26,08 | E136: 27,57 | G136: =IF(D136="","",D136+0) -> 26.08 | H136: =IF(E136="","",E136+0) -> 27.57 | I136: =IF(OR(G136="",H136=""),"",CONCATENATE("Sinapi ",A136)) -> Sinapi 94882
A137: 94884 | B137: ASSENTAMENTO DE TUBO DE PEAD CORRUGADO DE DUPLA PAREDE PARA REDE COLETORA DE ESGOTO, DN 1500 MM, JUNTA ELÁSTICA INTEGRADA, INSTALADO EM LOCAL COM NÍVEL BAIXO DE INTERFERÊNCIAS (NÃO INCLUI FORNECIMENTO). AF_06/2016 | C137: M | D137: 34,39 | E137: 36,35 | G137: 34.39 | H137: 36.35 | I137: Sinapi 94884
A138: 94885 | B138: TUBO DE PEAD CORRUGADO DE DUPLA PAREDE PARA REDE COLETORA DE ESGOTO, DN 250 MM, JUNTA ELÁSTICA INTEGRADA, INSTALADO EM LOCAL COM NÍVEL ALTO DE INTERFERÊNCIAS - FORNECIMENTO E ASSENTAMENTO. AF_06/2016 | C138: M | D138: 120,53 | E138: 120,60 | G138: 120.53 | H138: 120.6 | I138: Sinapi 94885
A139: 94886 | B139: ASSENTAMENTO DE TUBO DE PEAD CORRUGADO DE DUPLA PAREDE PARA REDE COLETORA DE ESGOTO, DN 250 MM, JUNTA ELÁSTICA INTEGRADA, INSTALADO EM LOCAL COM NÍVEL ALTO DE INTERFERÊNCIAS (NÃO INCLUI FORNECIMENTO). AF_06/2016 | C139: M | D139: 0,80 | E139: 0,87 | G139: 0.8 | H139: 0.87 | I139: Sinapi 94886
A140: 94887 | B140: TUBO DE PEAD CORRUGADO DE DUPLA PAREDE PARA REDE COLETORA DE ESGOTO, DN 300 MM, JUNTA ELÁSTICA INTEGRADA, INSTALADO EM LOCAL COM NÍVEL ALTO DE INTERFERÊNCIAS - FORNECIMENTO E ASSENTAMENTO. AF_06/2016 | C140: M | D140: 142,90 | E140: 143,04 | G140: 142.9 | H140: 143.04 | I140: Sinapi 94887
A141: 94888 | B141: ASSENTAMENTO DE TUBO DE PEAD CORRUGADO DE DUPLA PAREDE PARA REDE COLETORA DE ESGOTO, DN 300 MM, JUNTA ELÁSTICA INTEGRADA, INSTALADO EM LOCAL COM NÍVEL ALTO DE INTERFERÊNCIAS (NÃO INCLUI FORNECIMENTO). AF_06/2016 | C141: M | D141: 1,37 | E141: 1,51 | G141: 1.37 | H141: 1.51 | I141: Sinapi 94888
A142: 94891 | B142: TUBO DE PEAD CORRUGADO DE DUPLA PAREDE PARA REDE COLETORA DE ESGOTO, DN 750 MM, JUNTA ELÁSTICA INTEGRADA, INSTALADO EM LOCAL COM NÍVEL ALTO DE INTERFERÊNCIAS - FORNECIMENTO E ASSENTAMENTO. AF_06/2016 | C142: M | D142: 838,28 | E142: 839,30 | G142: 838.28 | H142: 839.3 | I142: Sinapi 94891
A143: 94892 | B143: ASSENTAMENTO DE TUBO DE PEAD CORRUGADO DE DUPLA PAREDE PARA REDE COLETORA DE ESGOTO, DN 750 MM, JUNTA ELÁSTICA INTEGRADA, INSTALADO EM LOCAL COM NÍVEL ALTO DE INTERFERÊNCIAS (NÃO INCLUI FORNECIMENTO). AF_06/2016 | C143: M | D143: 17,76 | E143: 18,78 | G143: 17.76 | H143: 18.78 | I143: Sinapi 94892
A144: 94894 | B144: ASSENTAMENTO DE TUBO DE PEAD CORRUGADO DE DUPLA PAREDE PARA REDE COLETORA DE ESGOTO, DN 900 MM, JUNTA ELÁSTICA INTEGRADA, INSTALADO EM LOCAL COM NÍVEL ALTO DE INTERFERÊNCIAS (NÃO INCLUI FORNECIMENTO). AF_06/2016 | C144: M | D144: 20,64 | E144: 21,82 | G144: 20.64 | H144: 21.82 | I144: Sinapi 94894
A145: 94895 | B145: TUBO DE PEAD CORRUGADO DE DUPLA PAREDE PARA REDE COLETORA DE ESGOTO, DN 1000 MM, JUNTA ELÁSTICA INTEGRADA, INSTALADO EM LOCAL COM NÍVEL ALTO DE INTERFERÊNCIAS - FORNECIMENTO E ASSENTAMENTO. AF_06/2016 | C145: M | D145: 1.117,01 | E145: 1.118,43 | G145: 1117.01 | H145: 1118.43 | I145: Sinapi 94895
A146: 94896 | B146: ASSENTAMENTO DE TUBO DE PEAD CORRUGADO DE DUPLA PAREDE PARA REDE COLETORA DE ESGOTO, DN 1000 MM, JUNTA ELÁSTICA INTEGRADA, INSTALADO EM LOCAL COM NÍVEL ALTO DE INTERFERÊNCIAS (NÃO INCLUI FORNECIMENTO). AF_06/2016 | C146: M | D146: 24,93 | E146: 26,35 | G146: 24.93 | H146: 26.35 | I146: Sinapi 94896
A147: 94897 | B147: TUBO DE PEAD CORRUGADO DE DUPLA PAREDE PARA REDE COLETORA DE ESGOTO, DN 1200 MM, JUNTA ELÁSTICA INTEGRADA, INSTALADO EM LOCAL COM NÍVEL ALTO DE INTERFERÊNCIAS - FORNECIMENTO E ASSENTAMENTO. AF_06/2016 | C147: M | D147: 1.740,76 | E147: 1.742,44 | G147: 1740.76 | H147: 1742.44 | I147: Sinapi 94897
A148: 94898 | B148: ASSENTAMENTO DE TUBO DE PEAD CORRUGADO DE DUPLA PAREDE PARA REDE COLETORA DE ESGOTO, DN 1200 MM, JUNTA ELÁSTICA INTEGRADA, INSTALADO EM LOCAL COM NÍVEL ALTO DE INTERFERÊNCIAS (NÃO INCLUI FORNECIMENTO). AF_06/2016 | C148: M | D148: 29,22 | E148: 30,90 | G148: 29.22 | H148: 30.9 | I148: Sinapi 94898
A149: 94900 | B149: ASSENTAMENTO DE TUBO DE PEAD CORRUGADO DE DUPLA PAREDE PARA REDE COLETORA DE ESGOTO, DN 1500 MM, JUNTA ELÁSTICA INTEGRADA, INSTALADO EM LOCAL COM NÍVEL ALTO DE INTERFERÊNCIAS (NÃO INCLUI FORNECIMENTO). AF_06/2016 | C149: M | D149: 37,83 | E149: 40,00 | G149: 37.83 | H149: 40 | I149: Sinapi 94900
A150: 97121 | B150: ASSENTAMENTO DE TUBO DE PVC PBA PARA REDE DE ÁGUA, DN 50 MM, JUNTA ELÁSTICA INTEGRADA, INSTALADO EM LOCAL COM NÍVEL ALTO DE INTERFERÊNCIAS (NÃO INCLUI FORNECIMENTO). AF_11/2017 | C150: M | D150: 1,39 | E150: 1,53 | G150: 1.39 | H150: 1.53 | I150: Sinapi 97121
A151: 97122 | B151: ASSENTAMENTO DE TUBO DE PVC PBA PARA REDE DE ÁGUA, DN 75 MM, JUNTA ELÁSTICA INTEGRADA, INSTALADO EM LOCAL COM NÍVEL ALTO DE INTERFERÊNCIAS (NÃO INCLUI FORNECIMENTO). AF_11/2017 | C151: M | D151: 1,95 | E151: 2,13 | G151: 1.95 | H151: 2.13 | I151: Sinapi 97122
A152: 97123 | B152: ASSENTAMENTO DE TUBO DE PVC PBA PARA REDE DE ÁGUA, DN 100 MM, JUNTA ELÁSTICA INTEGRADA, INSTALADO EM LOCAL COM NÍVEL ALTO DE INTERFERÊNCIAS (NÃO INCLUI FORNECIMENTO). AF_11/2017 | C152: M | D152: 2,48 | E152: 2,72 | G152: 2.48 | H152: 2.72 | I152: Sinapi 97123
A153: 97124 | B153: ASSENTAMENTO DE TUBO DE PVC PBA PARA REDE DE ÁGUA, DN 50 MM, JUNTA ELÁSTICA INTEGRADA, INSTALADO EM LOCAL COM NÍVEL BAIXO DE INTERFERÊNCIAS (NÃO INCLUI FORNECIMENTO). AF_11/2017 | C153: M | D153: 0,61 | E153: 0,68 | G153: 0.61 | H153: 0.68 | I153: Sinapi 97124
A154: 97125 | B154: ASSENTAMENTO DE TUBO DE PVC PBA PARA REDE DE ÁGUA, DN 75 MM, JUNTA ELÁSTICA INTEGRADA, INSTALADO EM LOCAL COM NÍVEL BAIXO DE INTERFERÊNCIAS (NÃO INCLUI FORNECIMENTO). AF_11/2017 | C154: M | D154: 0,89 | E154: 0,97 | G154: 0.89 | H154: 0.97 | I154: Sinapi 97125
A155: 97126 | B155: ASSENTAMENTO DE TUBO DE PVC PBA PARA REDE DE ÁGUA, DN 100 MM, JUNTA ELÁSTICA INTEGRADA, INSTALADO EM LOCAL COM NÍVEL BAIXO DE INTERFERÊNCIAS (NÃO INCLUI FORNECIMENTO). AF_11/2017 | C155: M | D155: 1,14 | E155: 1,23 | G155: 1.14 | H155: 1.23 | I155: Sinapi 97126
A156: 92833 | B156: TUBO DE CONCRETO PARA REDES COLETORAS DE ESGOTO SANITÁRIO, DIÂMETRO DE 300 MM, JUNTA ELÁSTICA, INSTALADO EM LOCAL COM BAIXO NÍVEL DE INTERFERÊNCIAS - FORNECIMENTO E ASSENTAMENTO. AF_12/2015 | C156: M | D156: 135,96 | E156: 136,34 | G156: 135.96 | H156: 136.34 | I156: Sinapi 92833
A157: 92834 | B157: ASSENTAMENTO DE TUBO DE CONCRETO PARA REDES COLETORAS DE ESGOTO SANITÁRIO, DIÂMETRO DE 300 MM, JUNTA ELÁSTICA, INSTALADO EM LOCAL COM BAIXO NÍVEL DE INTERFERÊNCIAS (NÃO INCLUI FORNECIMENTO). AF_12/2015 | C157: M | D157: 5,59 | E157: 5,98 | G157: 5.59 | H157: 5.98 | I157: Sinapi 92834
A158: 92835 | B158: TUBO DE CONCRETO PARA REDES COLETORAS DE ESGOTO SANITÁRIO, DIÂMETRO DE 400 MM, JUNTA ELÁSTICA, INSTALADO EM LOCAL COM BAIXO NÍVEL DE INTERFERÊNCIAS - FORNECIMENTO E ASSENTAMENTO. AF_12/2015 | C158: M | D158: 179,12 | E158: 179,61 | G158: 179.12 | H158: 179.61 | I158: Sinapi 92835
A159: 92836 | B159: ASSENTAMENTO DE TUBO DE CONCRETO PARA REDES COLETORAS DE ESGOTO SANITÁRIO, DIÂMETRO DE 400 MM, JUNTA ELÁSTICA, INSTALADO EM LOCAL COM BAIXO NÍVEL DE INTERFERÊNCIAS (NÃO INCLUI FORNECIMENTO). AF_12/2015 | C159: M | D159: 7,15 | E159: 7,63 | G159: 7.15 | H159: 7.63 | I159: Sinapi 92836
A160: 92837 | B160: TUBO DE CONCRETO PARA REDES COLETORAS DE ESGOTO SANITÁRIO, DIÂMETRO DE 500 MM, JUNTA ELÁSTICA, INSTALADO EM LOCAL COM BAIXO NÍVEL DE INTERFERÊNCIAS - FORNECIMENTO E ASSENTAMENTO. AF_12/2015 | C160: M | D160: 225,83 | E160: 226,44 | G160: 225.83 | H160: 226.44 | I160: Sinapi 92837
A161: 92838 | B161: ASSENTAMENTO DE TUBO DE CONCRETO PARA REDES COLETORAS DE ESGOTO SANITÁRIO, DIÂMETRO DE 500 MM, JUNTA ELÁSTICA, INSTALADO EM LOCAL COM BAIXO NÍVEL DE INTERFERÊNCIAS (NÃO INCLUI FORNECIMENTO). AF_12/2015 | C161: M | D161: 8,58 | E161: 9,18 | G161: 8.58 | H161: 9.18 | I161: Sinapi 92838
A162: 92839 | B162: TUBO DE CONCRETO PARA REDES COLETORAS DE ESGOTO SANITÁRIO, DIÂMETRO DE 600 MM, JUNTA ELÁSTICA, INSTALADO EM LOCAL COM BAIXO NÍVEL DE INTERFERÊNCIAS - FORNECIMENTO E ASSENTAMENTO. AF_12/2015 | C162: M | D162: 296,77 | E162: 297,48 | G162: 296.77 | H162: 297.48 | I162: Sinapi 92839
A163: 92840 | B163: ASSENTAMENTO DE TUBO DE CONCRETO PARA REDES COLETORAS DE ESGOTO SANITÁRIO, DIÂMETRO DE 600 MM, JUNTA ELÁSTICA, INSTALADO EM LOCAL COM BAIXO NÍVEL DE INTERFERÊNCIAS (NÃO INCLUI FORNECIMENTO). AF_12/2015 | C163: M | D163: 10,16 | E163: 10,86 | G163: 10.16 | H163: 10.86 | I163: Sinapi 92840
A164: 92841 | B164: TUBO DE CONCRETO PARA REDES COLETORAS DE ESGOTO SANITÁRIO, DIÂMETRO DE 700 MM, JUNTA ELÁSTICA, INSTALADO EM LOCAL COM BAIXO NÍVEL DE INTERFERÊNCIAS - FORNECIMENTO E ASSENTAMENTO. AF_12/2015 | C164: M | D164: 336,26 | E164: 337,06 | G164: 336.26 | H164: 337.06 | I164: Sinapi 92841
A165: 92842 | B165: ASSENTAMENTO DE TUBO DE CONCRETO PARA REDES COLETORAS DE ESGOTO SANITÁRIO, DIÂMETRO DE 700 MM, JUNTA ELÁSTICA, INSTALADO EM LOCAL COM BAIXO NÍVEL DE INTERFERÊNCIAS (NÃO INCLUI FORNECIMENTO). AF_12/2015 | C165: M | D165: 11,62 | E165: 12,41 | G165: 11.62 | H165: 12.41 | I165: Sinapi 92842
A166: 92844 | B166: ASSENTAMENTO DE TUBO DE CONCRETO PARA REDES COLETORAS DE ESGOTO SANITÁRIO, DIÂMETRO DE 800 MM, JUNTA ELÁSTICA, INSTALADO EM LOCAL COM BAIXO NÍVEL DE INTERFERÊNCIAS (NÃO INCLUI FORNECIMENTO). AF_12/2015 | C166: M | D166: 13,20 | E166: 14,11 | G166: 13.2 | H166: 14.11 | I166: Sinapi 92844
A167: 92846 | B167: ASSENTAMENTO DE TUBO DE CONCRETO PARA REDES COLETORAS DE ESGOTO SANITÁRIO, DIÂMETRO DE 900 MM, JUNTA ELÁSTICA, INSTALADO EM LOCAL COM BAIXO NÍVEL DE INTERFERÊNCIAS (NÃO INCLUI FORNECIMENTO). AF_12/2015 | C167: M | D167: 14,63 | E167: 15,65 | G167: 14.63 | H167: 15.65 | I167: Sinapi 92846
A168: 92847 | B168: TUBO DE CONCRETO PARA REDES COLETORAS DE ESGOTO SANITÁRIO, DIÂMETRO DE 1000 MM, JUNTA ELÁSTICA, INSTALADO EM LOCAL COM BAIXO NÍVEL DE INTERFERÊNCIAS - FORNECIMENTO E ASSENTAMENTO. AF_12/2015 | C168: M | D168: 588,23 | E168: 589,33 | G168: 588.23 | H168: 589.33 | I168: Sinapi 92847
A169: 92848 | B169: ASSENTAMENTO DE TUBO DE CONCRETO PARA REDES COLETORAS DE ESGOTO SANITÁRIO, DIÂMETRO DE 1000 MM, JUNTA ELÁSTICA, INSTALADO EM LOCAL COM BAIXO NÍVEL DE INTERFERÊNCIAS (NÃO INCLUI FORNECIMENTO). AF_12/2015 | C169: M | D169: 16,25 | E169: 17,34 | G169: 16.25 | H169: 17.34 | I169: Sinapi 92848
A170: 92849 | B170: TUBO DE CONCRETO PARA REDES COLETORAS DE ESGOTO SANITÁRIO, DIÂMETRO DE 300 MM, JUNTA ELÁSTICA, INSTALADO EM LOCAL COM ALTO NÍVEL DE INTERFERÊNCIAS - FORNECIMENTO E ASSENTAMENTO. AF_12/2015 | C170: M | D170: 140,96 | E170: 141,69 | G170: 140.96 | H170: 141.69 | I170: Sinapi 92849
A171: 92850 | B171: ASSENTAMENTO DE TUBO DE CONCRETO PARA REDES COLETORAS DE ESGOTO SANITÁRIO, DIÂMETRO DE 300 MM, JUNTA ELÁSTICA, INSTALADO EM LOCAL COM ALTO NÍVEL DE INTERFERÊNCIAS (NÃO INCLUI FORNECIMENTO). AF_12/2015 | C171: M | D171: 10,59 | E171: 11,32 | G171: 10.59 | H171: 11.32 | I171: Sinapi 92850
A172: 92851 | B172: TUBO DE CONCRETO PARA REDES COLETORAS DE ESGOTO SANITÁRIO, DIÂMETRO DE 400 MM, JUNTA ELÁSTICA, INSTALADO EM LOCAL COM ALTO NÍVEL DE INTERFERÊNCIAS - FORNECIMENTO E ASSENTAMENTO. AF_12/2015 | C172: M | D172: 185,38 | E172: 186,30 | G172: 185.38 | H172: 186.3 | I172: Sinapi 92851
A173: 92852 | B173: ASSENTAMENTO DE TUBO DE CONCRETO PARA REDES COLETORAS DE ESGOTO SANITÁRIO, DIÂMETRO DE 400 MM, JUNTA ELÁSTICA, INSTALADO EM LOCAL COM ALTO NÍVEL DE INTERFERÊNCIAS (NÃO INCLUI FORNECIMENTO). AF_12/2015 | C173: M | D173: 13,39 | E173: 14,31 | G173: 13.39 | H173: 14.31 | I173: Sinapi 92852
A174: 92853 | B174: TUBO DE CONCRETO PARA REDES COLETORAS DE ESGOTO SANITÁRIO, DIÂMETRO DE 500 MM, JUNTA ELÁSTICA, INSTALADO EM LOCAL COM ALTO NÍVEL DE INTERFERÊNCIAS - FORNECIMENTO E ASSENTAMENTO. AF_12/2015 | C174: M | D174: 233,57 | E174: 234,69 | G174: 233.57 | H174: 234.69 | I174: Sinapi 92853
A175: 92854 | B175: ASSENTAMENTO DE TUBO DE CONCRETO PARA REDES COLETORAS DE ESGOTO SANITÁRIO, DIÂMETRO DE 500 MM, JUNTA ELÁSTICA, INSTALADO EM LOCAL COM ALTO NÍVEL DE INTERFERÊNCIAS (NÃO INCLUI FORNECIMENTO). AF_12/2015 | C175: M | D175: 16,30 | E175: 17,41 | G175: 16.3 | H175: 17.41 | I175: Sinapi 92854
A176: 92855 | B176: TUBO DE CONCRETO PARA REDES COLETORAS DE ESGOTO SANITÁRIO, DIÂMETRO DE 600 MM, JUNTA ELÁSTICA, INSTALADO EM LOCAL COM ALTO NÍVEL DE INTERFERÊNCIAS - FORNECIMENTO E ASSENTAMENTO. AF_12/2015 | C176: M | D176: 305,84 | E176: 307,16 | G176: 305.84 | H176: 307.16 | I176: Sinapi 92855
A177: 92856 | B177: ASSENTAMENTO DE TUBO DE CONCRETO PARA REDES COLETORAS DE ESGOTO SANITÁRIO, DIÂMETRO DE 600 MM, JUNTA ELÁSTICA, INSTALADO EM LOCAL COM ALTO NÍVEL DE INTERFERÊNCIAS (NÃO INCLUI FORNECIMENTO). AF_12/2015 | C177: M | D177: 19,21 | E177: 20,53 | G177: 19.21 | H177: 20.53 | I177: Sinapi 92856
A178: 92857 | B178: TUBO DE CONCRETO PARA REDES COLETORAS DE ESGOTO SANITÁRIO, DIÂMETRO DE 700 MM, JUNTA ELÁSTICA, INSTALADO EM LOCAL COM ALTO NÍVEL DE INTERFERÊNCIAS - FORNECIMENTO E ASSENTAMENTO. AF_12/2015 | C178: M | D178: 346,65 | E178: 348,16 | G178: 346.65 | H178: 348.16 | I178: Sinapi 92857
A179: 92858 | B179: ASSENTAMENTO DE TUBO DE CONCRETO PARA REDES COLETORAS DE ESGOTO SANITÁRIO, DIÂMETRO DE 700 MM, JUNTA ELÁSTICA, INSTALADO EM LOCAL COM ALTO NÍVEL DE INTERFERÊNCIAS (NÃO INCLUI FORNECIMENTO). AF_12/2015 | C179: M | D179: 21,98 | E179: 23,49 | G179: 21.98 | H179: 23.49 | I179: Sinapi 92858
A180: 92860 | B180: ASSENTAMENTO DE TUBO DE CONCRETO PARA REDES COLETORAS DE ESGOTO SANITÁRIO, DIÂMETRO DE 800 MM, JUNTA ELÁSTICA, INSTALADO EM LOCAL COM ALTO NÍVEL DE INTERFERÊNCIAS (NÃO INCLUI FORNECIMENTO). AF_12/2015 | C180: M | D180: 24,96 | E180: 26,68 | G180: 24.96 | H180: 26.68 | I180: Sinapi 92860
A181: 92862 | B181: ASSENTAMENTO DE TUBO DE CONCRETO PARA REDES COLETORAS DE ESGOTO SANITÁRIO, DIÂMETRO DE 900 MM, JUNTA ELÁSTICA, INSTALADO EM LOCAL COM ALTO NÍVEL DE INTERFERÊNCIAS (NÃO INCLUI FORNECIMENTO). AF_12/2015 | C181: M | D181: 27,85 | E181: 29,77 | G181: 27.85 | H181: 29.77 | I181: Sinapi 92862
A182: 92863 | B182: TUBO DE CONCRETO PARA REDES COLETORAS DE ESGOTO SANITÁRIO, DIÂMETRO DE 1000 MM, JUNTA ELÁSTICA, INSTALADO EM LOCAL COM ALTO NÍVEL DE INTERFERÊNCIAS - FORNECIMENTO E ASSENTAMENTO. AF_12/2015 | C182: M | D182: 602,77 | E182: 604,89 | G182: 602.77 | H182: 604.89 | I182: Sinapi 92863
A183: 92864 | B183: ASSENTAMENTO DE TUBO DE CONCRETO PARA REDES COLETORAS DE ESGOTO SANITÁRIO, DIÂMETRO DE 1000 MM, JUNTA ELÁSTICA, INSTALADO EM LOCAL COM ALTO NÍVEL DE INTERFERÊNCIAS (NÃO INCLUI FORNECIMENTO). AF_12/2015 | C183: M | D183: 30,76 | E183: 32,87 | G183: 30.76 | H183: 32.87 | I183: Sinapi 92864
A184: 92210 | B184: TUBO DE CONCRETO PARA REDES COLETORAS DE ÁGUAS PLUVIAIS, DIÂMETRO DE 400 MM, JUNTA RÍGIDA, INSTALADO EM LOCAL COM BAIXO NÍVEL DE INTERFERÊNCIAS - FORNECIMENTO E ASSENTAMENTO. AF_12/2015 | C184: M | D184: 105,99 | E184: 108,18 | G184: 105.99 | H184: 108.18 | I184: Sinapi 92210
A185: 92211 | B185: TUBO DE CONCRETO PARA REDES COLETORAS DE ÁGUAS PLUVIAIS, DIÂMETRO DE 500 MM, JUNTA RÍGIDA, INSTALADO EM LOCAL COM BAIXO NÍVEL DE INTERFERÊNCIAS - FORNECIMENTO E ASSENTAMENTO. AF_12/2015 | C185: M | D185: 136,63 | E185: 139,30 | G185: 136.63 | H185: 139.3 | I185: Sinapi 92211
A186: 92212 | B186: TUBO DE CONCRETO PARA REDES COLETORAS DE ÁGUAS PLUVIAIS, DIÂMETRO DE 600 MM, JUNTA RÍGIDA, INSTALADO EM LOCAL COM BAIXO NÍVEL DE INTERFERÊNCIAS - FORNECIMENTO E ASSENTAMENTO. AF_12/2015 | C186: M | D186: 175,61 | E186: 178,76 | G186: 175.61 | H186: 178.76 | I186: Sinapi 92212
A187: 92213 | B187: TUBO DE CONCRETO PARA REDES COLETORAS DE ÁGUAS PLUVIAIS, DIÂMETRO DE 700 MM, JUNTA RÍGIDA, INSTALADO EM LOCAL COM BAIXO NÍVEL DE INTERFERÊNCIAS - FORNECIMENTO E ASSENTAMENTO. AF_12/2015 | C187: M | D187: 234,97 | E187: 238,61 | G187: 234.97 | H187: 238.61 | I187: Sinapi 92213
A188: 92214 | B188: TUBO DE CONCRETO PARA REDES COLETORAS DE ÁGUAS PLUVIAIS, DIÂMETRO DE 800 MM, JUNTA RÍGIDA, INSTALADO EM LOCAL COM BAIXO NÍVEL DE INTERFERÊNCIAS - FORNECIMENTO E ASSENTAMENTO. AF_12/2015 | C188: M | D188: 268,09 | E188: 272,24 | G188: 268.09 | H188: 272.24 | I188: Sinapi 92214
A189: 92215 | B189: TUBO DE CONCRETO PARA REDES COLETORAS DE ÁGUAS PLUVIAIS, DIÂMETRO DE 900 MM, JUNTA RÍGIDA, INSTALADO EM LOCAL COM BAIXO NÍVEL DE INTERFERÊNCIAS - FORNECIMENTO E ASSENTAMENTO. AF_12/2015 | C189: M | D189: 325,46 | E189: 330,15 | G189: 325.46 | H189: 330.15 | I189: Sinapi 92215
A190: 92216 | B190: TUBO DE CONCRETO PARA REDES COLETORAS DE ÁGUAS PLUVIAIS, DIÂMETRO DE 1000 MM, JUNTA RÍGIDA, INSTALADO EM LOCAL COM BAIXO NÍVEL DE INTERFERÊNCIAS - FORNECIMENTO E ASSENTAMENTO. AF_12/2015 | C190: M | D190: 364,71 | E190: 369,99 | G190: 364.71 | H190: 369.99 | I190: Sinapi 92216
A191: 92219 | B191: TUBO DE CONCRETO PARA REDES COLETORAS DE ÁGUAS PLUVIAIS, DIÂMETRO DE 400 MM, JUNTA RÍGIDA, INSTALADO EM LOCAL COM ALTO NÍVEL DE INTERFERÊNCIAS - FORNECIMENTO E ASSENTAMENTO. AF_12/2015 | C191: M | D191: 112,22 | E191: 114,85 | G191: 112.22 | H191: 114.85 | I191: Sinapi 92219
A192: 92220 | B192: TUBO DE CONCRETO PARA REDES COLETORAS DE ÁGUAS PLUVIAIS, DIÂMETRO DE 500 MM, JUNTA RÍGIDA, INSTALADO EM LOCAL COM ALTO NÍVEL DE INTERFERÊNCIAS - FORNECIMENTO E ASSENTAMENTO. AF_12/2015 | C192: M | D192: 144,35 | E192: 147,54 | G192: 144.35 | H192: 147.54 | I192: Sinapi 92220
A193: 92221 | B193: TUBO DE CONCRETO PARA REDES COLETORAS DE ÁGUAS PLUVIAIS, DIÂMETRO DE 600 MM, JUNTA RÍGIDA, INSTALADO EM LOCAL COM ALTO NÍVEL DE INTERFERÊNCIAS - FORNECIMENTO E ASSENTAMENTO. AF_12/2015 | C193: M | D193: 184,65 | E193: 188,43 | G193: 184.65 | H193: 188.43 | I193: Sinapi 92221
A194: 92222 | B194: TUBO DE CONCRETO PARA REDES COLETORAS DE ÁGUAS PLUVIAIS, DIÂMETRO DE 700 MM, JUNTA RÍGIDA, INSTALADO EM LOCAL COM ALTO NÍVEL DE INTERFERÊNCIAS - FORNECIMENTO E ASSENTAMENTO. AF_12/2015 | C194: M | D194: 245,47 | E194: 249,82 | G194: 245.47 | H194: 249.82 | I194: Sinapi 92222
A195: 92223 | B195: TUBO DE CONCRETO PARA REDES COLETORAS DE ÁGUAS PLUVIAIS, DIÂMETRO DE 800 MM, JUNTA RÍGIDA, INSTALADO EM LOCAL COM ALTO NÍVEL DE INTERFERÊNCIAS - FORNECIMENTO E ASSENTAMENTO. AF_12/2015 | C195: M | D195: 279,86 | E195: 284,82 | G195: 279.86 | H195: 284.82 | I195: Sinapi 92223
A196: 92224 | B196: TUBO DE CONCRETO PARA REDES COLETORAS DE ÁGUAS PLUVIAIS, DIÂMETRO DE 900 MM, JUNTA RÍGIDA, INSTALADO EM LOCAL COM ALTO NÍVEL DE INTERFERÊNCIAS - FORNECIMENTO E ASSENTAMENTO. AF_12/2015 | C196: M | D196: 338,52 | E196: 344,10 | G196: 338.52 | H196: 344.1 | I196: Sinapi 92224
A197: 92226 | B197: TUBO DE CONCRETO PARA REDES COLETORAS DE ÁGUAS PLUVIAIS, DIÂMETRO DE 1000 MM, JUNTA RÍGIDA, INSTALADO EM LOCAL COM ALTO NÍVEL DE INTERFERÊNCIAS - FORNECIMENTO E ASSENTAMENTO. AF_12/2015 | C197: M | D197: 379,31 | E197: 385,59 | G197: 379.31 | H197: 385.59 | I197: Sinapi 92226
A198: 92808 | B198: ASSENTAMENTO DE TUBO DE CONCRETO PARA REDES COLETORAS DE ÁGUAS PLUVIAIS, DIÂMETRO DE 300 MM, JUNTA RÍGIDA, INSTALADO EM LOCAL COM BAIXO NÍVEL DE INTERFERÊNCIAS (NÃO INCLUI FORNECIMENTO). AF_12/2015 | C198: M | D198: 25,29 | E198: 27,01 | G198: 25.29 | H198: 27.01 | I198: Sinapi 92808
A199: 92809 | B199: ASSENTAMENTO DE TUBO DE CONCRETO PARA REDES COLETORAS DE ÁGUAS PLUVIAIS, DIÂMETRO DE 400 MM, JUNTA RÍGIDA, INSTALADO EM LOCAL COM BAIXO NÍVEL DE INTERFERÊNCIAS (NÃO INCLUI FORNECIMENTO). AF_12/2015 | C199: M | D199: 32,48 | E199: 34,67 | G199: 32.48 | H199: 34.67 | I199: Sinapi 92809
A200: 92810 | B200: ASSENTAMENTO DE TUBO DE CONCRETO PARA REDES COLETORAS DE ÁGUAS PLUVIAIS, DIÂMETRO DE 500 MM, JUNTA RÍGIDA, INSTALADO EM LOCAL COM BAIXO NÍVEL DE INTERFERÊNCIAS (NÃO INCLUI FORNECIMENTO). AF_12/2015 | C200: M | D200: 39,57 | E200: 42,24 | G200: =IF(D200="","",D200+0) -> 39.57 | H200: =IF(E200="","",E200+0) -> 42.24 | I200: =IF(OR(G200="",H200=""),"",CONCATENATE("Sinapi ",A200)) -> Sinapi 92810
A201: 92811 | B201: ASSENTAMENTO DE TUBO DE CONCRETO PARA REDES COLETORAS DE ÁGUAS PLUVIAIS, DIÂMETRO DE 600 MM, JUNTA RÍGIDA, INSTALADO EM LOCAL COM BAIXO NÍVEL DE INTERFERÊNCIAS (NÃO INCLUI FORNECIMENTO). AF_12/2015 | C201: M | D201: 47,20 | E201: 50,35 | G201: 47.2 | H201: 50.35 | I201: Sinapi 92811
A202: 92812 | B202: ASSENTAMENTO DE TUBO DE CONCRETO PARA REDES COLETORAS DE ÁGUAS PLUVIAIS, DIÂMETRO DE 700 MM, JUNTA RÍGIDA, INSTALADO EM LOCAL COM BAIXO NÍVEL DE INTERFERÊNCIAS (NÃO INCLUI FORNECIMENTO). AF_12/2015 | C202: M | D202: 54,74 | E202: 58,38 | G202: 54.74 | H202: 58.38 | I202: Sinapi 92812
A203: 92813 | B203: ASSENTAMENTO DE TUBO DE CONCRETO PARA REDES COLETORAS DE ÁGUAS PLUVIAIS, DIÂMETRO DE 800 MM, JUNTA RÍGIDA, INSTALADO EM LOCAL COM BAIXO NÍVEL DE INTERFERÊNCIAS (NÃO INCLUI FORNECIMENTO). AF_12/2015 | C203: M | D203: 63,70 | E203: 67,85 | G203: 63.7 | H203: 67.85 | I203: Sinapi 92813
... 6222 more rows

Sheet Insumos Sinapi (hidden)
A1: PRECOS DE INSUMOS
A3: MES DE COLETA: 12/2019
A4: LOCALIDADE: 4495 - BRASILIA
A5: ENCARGOS SOCIAIS (%) HORISTA 113,81 MENSALISTA 73,29
A7: CODIGO | B7: DESCRICAO DO INSUMO | C7: UNIDADE | D7: ORIGEM DO PRECO | E7: PRECO MEDIANO R$ | G7: PRECO MEDIANO R$ | H7: CÓD SINAPI
A8: 39680 | B8: !EM PROCESSO DE DESATIVACAO! CAIXA DE PROTECAO PARA 1 MEDIDOR MONOFASICO, EM CHAPA DE ACO 20 USG (PADRAO DA CONCESSIONARIA LOCAL) | C8: UN | D8: CR | E8: 111,05 | G8: =IF(E8="","",E8+0) -> 111.05 | H8: =IF(G8="","",CONCATENATE("Sinapi ",A8)) -> Sinapi 39680
A9: 39683 | B9: !EM PROCESSO DE DESATIVACAO! CAIXA INTERNA/EXTERNA DE MEDICAO PARA 1 MEDIDOR MONOFASICO, COM VISOR, EM CHAPA DE ACO 18 USG (PADRAO DA CONCESSIONARIA LOCAL) | C9: UN | D9: CR | E9: 67,98 | G9: =IF(E9="","",E9+0) -> 67.98 | H9: =IF(G9="","",CONCATENATE("Sinapi ",A9)) -> Sinapi 39683
A10: 2404 | B10: !EM PROCESSO DE DESATIVACAO! DIVISORIA COLMEIA CEGA COM MONTANTE E RODAPE DE ALUMINIO ANODIZADO SIMPLES (SEM COLOCACAO) | C10: M2 | D10: AS | E10: 84,90 | G10: 84.9 | H10: Sinapi 2404
A11: 2720 | B11: !EM PROCESSO DE DESATIVACAO! ESCAVADEIRA DRAGA DE ARRASTE, CAP. 3/4 JC 140HP (INCL MANUTENCAO/OPERACAO) | C11: H | D11: AS | E11: 156,67 | G11: 156.67 | H11: Sinapi 2720
A12: 2719 | B12: !EM PROCESSO DE DESATIVACAO! ESCAVADEIRA HIDRAULICA SOBRE ESTEIRAS DE 99 HP, PESO OPERACIONAL DE *16* T E CAPACIDADE DE 0,85 A 1,00 M3 (LOCACAO COM OPERADOR, COMBUSTIVEL E MANUTENCAO) | C12: H | D12: AS | E12: 132,75 | G12: 132.75 | H12: Sinapi 2719
A13: 3378 | B13: !EM PROCESSO DE DESATIVACAO! HASTE DE ATERRAMENTO EM ACO COM 3,00 M DE COMPRIMENTO E DN = 3/4", REVESTIDA COM BAIXA CAMADA DE COBRE, SEM CONECTOR | C13: UN | D13: CR | E13: 66,18 | G13: 66.18 | H13: Sinapi 3378
A14: 3380 | B14: !EM PROCESSO DE DESATIVACAO! HASTE DE ATERRAMENTO EM ACO COM 3,00 M DE COMPRIMENTO E DN = 5/8", REVESTIDA COM BAIXA CAMADA DE COBRE, COM CONECTOR TIPO GRAMPO | C14: UN | D14: C | E14: 46,33 | G14: 46.33 | H14: Sinapi 3380
A15: 3379 | B15: !EM PROCESSO DE DESATIVACAO! HASTE DE ATERRAMENTO EM ACO COM 3,00 M DE COMPRIMENTO E DN = 5/8", REVESTIDA COM BAIXA CAMADA DE COBRE, SEM CONECTOR | C15: UN | D15: CR | E15: 44,73 | G15: 44.73 | H15: Sinapi 3379
A16: 3346 | B16: !EM PROCESSO DE DESATIVACAO! LOCACAO DE GRUPO GERADOR *80 A 125* KVA, MOTOR DIESEL, REBOCAVEL, ACIONAMENTO MANUAL | C16: H | D16: AS | E16: 13,50 | G16: 13.5 | H16: Sinapi 3346
A17: 3348 | B17: !EM PROCESSO DE DESATIVACAO! LOCACAO DE GRUPO GERADOR ACIMA DE * 125 ATE 180* KVA, MOTOR DIESEL, REBOCAVEL, ACIONAMENTO MANUAL | C17: H | D17: AS | E17: 16,15 | G17: 16.15 | H17: Sinapi 3348
A18: 3345 | B18: !EM PROCESSO DE DESATIVACAO! LOCACAO DE GRUPO GERADOR ACIMA DE * 20 A 80* KVA, MOTOR DIESEL, REBOCAVEL, ACIONAMENTO MANUAL | C18: H | D18: AS | E18: 10,43 | G18: 10.43 | H18: Sinapi 3345
A19: 39833 | B19: !EM PROCESSO DE DESATIVACAO! LOCACAO DE GRUPO GERADOR DE *260* KVA, DIESEL REBOCAVEL, ACIONAMENTO MANUAL | C19: H | D19: AS | E19: 22,12 | G19: 22.12 | H19: Sinapi 39833
A20: 39834 | B20: !EM PROCESSO DE DESATIVACAO! LOCACAO DE GRUPO GERADOR DE *400* KVA, DIESEL REBOCAVEL, ACIONAMENTO MANUAL | C20: H | D20: AS | E20: 37,96 | G20: 37.96 | H20: Sinapi 39834
A21: 39835 | B21: !EM PROCESSO DE DESATIVACAO! LOCACAO DE GRUPO GERADOR DE *550* KVA, DIESEL REBOCAVEL, ACIONAMENTO MANUAL | C21: H | D21: AS | E21: 46,28 | G21: 46.28 | H21: Sinapi 39835
A22: 13382 | B22: !EM PROCESSO DE DESATIVACAO! LUMINARIA FECHADA P/ ILUMINACAO PUBLICA, TIPO ABL 50/F OU EQUIV, P/ LAMPADA A VAPOR DE MERCURIO 400W | C22: UN | D22: CR | E22: 191,77 | G22: 191.77 | H22: Sinapi 13382
A23: 13399 | B23: !EM PROCESSO DE DESATIVACAO! QUADRO DE DISTRIBUICAO SEM BARRAMENTO, COM PORTA, DE EMBUTIR, EM CHAPA DE ACO GALVANIZADO, PARA 3 DISJUNTORES NEMA | C23: UN | D23: CR | E23: 34,67 | G23: 34.67 | H23: Sinapi 13399
A24: 39764 | B24: !EM PROCESSO DE DESATIVACAO! QUADRO DE DISTRIBUICAO SEM BARRAMENTO, COM PORTA, DE EMBUTIR, EM CHAPA DE ACO GALVANIZADO, PARA 6 DISJUNTORES NEMA | C24: UN | D24: CR | E24: 47,68 | G24: 47.68 | H24: Sinapi 39764
A25: 4126 | B25: !EM PROCESSO DE DESATIVACAO! TERMINAL DE PORCELANA (MUFLA) UNIPOLAR, USO EXTERNO, TENSAO 3,6/6 KV, PARA CABO DE 10/16 MM2, COM ISOLAMENTO EPR | C25: UN | D25: AS | E25: 209,97 | G25: 209.97 | H25: Sinapi 4126
A26: 10615 | B26: !EM PROCESSO DE DESATIVACAO! VEICULO DE PASSEIO COM MOTOR 1.0 FLEX, POTENCIA 72/85 CV, 5 PORTAS, COR SOLIDA, BASICO | C26: UN | D26: C | E26: 42.990,00 | G26: 42990 | H26: Sinapi 10615
A27: 21136 | B27: !EM PROCESSO DESATIVACAO! ELETRODUTO EM ACO GALVANIZADO ELETROLITICO, LEVE, DIAMETRO 1", PAREDE DE 0,90 MM | C27: M | D27: AS | E27: 11,95 | G27: 11.95 | H27: Sinapi 21136
A28: 21128 | B28: !EM PROCESSO DESATIVACAO! ELETRODUTO EM ACO GALVANIZADO ELETROLITICO, LEVE, DIAMETRO 3/4", PAREDE DE 0,90 MM | C28: M | D28: AS | E28: 9,25 | G28: 9.25 | H28: Sinapi 21128
A29: 21130 | B29: !EM PROCESSO DESATIVACAO! ELETRODUTO EM ACO GALVANIZADO ELETROLITICO, SEMI-PESADO, DIAMETRO 1 1/2", PAREDE DE 1,20 MM | C29: M | D29: AS | E29: 23,36 | G29: 23.36 | H29: Sinapi 21130
A30: 21135 | B30: !EM PROCESSO DESATIVACAO! ELETRODUTO EM ACO GALVANIZADO ELETROLITICO, SEMI-PESADO, DIAMETRO 1 1/4", PAREDE DE 1,20 MM | C30: M | D30: AS | E30: 23,00 | G30: 23 | H30: Sinapi 21135
A31: 42402 | B31: AÇO CA-25, 16,0 MM, BARRA DE TRANSFERENCIA | C31: KG | D31: CR | E31: 5,62 | G31: 5.62 | H31: Sinapi 42402
A32: 38605 | B32: ABERTURA PARA ENCAIXE DE CUBA OU LAVATORIO EM BANCADA DE MARMORE/ GRANITO OU OUTRO TIPO DE PEDRA NATURAL | C32: UN | D32: CR | E32: 74,43 | G32: 74.43 | H32: Sinapi 38605
A33: 11270 | B33: ABRACADEIRA DE LATAO PARA FIXACAO DE CABO PARA-RAIO, DIMENSOES 32 X 24 X 24 MM | C33: UN | D33: CR | E33: 1,93 | G33: 1.93 | H33: Sinapi 11270
A34: 412 | B34: ABRACADEIRA DE NYLON PARA AMARRACAO DE CABOS, COMPRIMENTO DE *230* X *7,6* MM | C34: UN | D34: CR | E34: 1,02 | G34: 1.02 | H34: Sinapi 412
A35: 414 | B35: ABRACADEIRA DE NYLON PARA AMARRACAO DE CABOS, COMPRIMENTO DE 100 X 2,5 MM | C35: UN | D35: CR | E35: 0,06 | G35: 0.06 | H35: Sinapi 414
A36: 410 | B36: ABRACADEIRA DE NYLON PARA AMARRACAO DE CABOS, COMPRIMENTO DE 150 X *3,6* MM | C36: UN | D36: CR | E36: 0,15 | G36: 0.15 | H36: Sinapi 410
A37: 411 | B37: ABRACADEIRA DE NYLON PARA AMARRACAO DE CABOS, COMPRIMENTO DE 200 X *4,6* MM | C37: UN | D37: C | E37: 0,20 | G37: 0.2 | H37: Sinapi 411
A38: 408 | B38: ABRACADEIRA DE NYLON PARA AMARRACAO DE CABOS, COMPRIMENTO DE 390 X *4,6* MM | C38: UN | D38: CR | E38: 0,99 | G38: 0.99 | H38: Sinapi 408
A39: 39131 | B39: ABRACADEIRA EM ACO PARA AMARRACAO DE ELETRODUTOS, TIPO D, COM 1 1/2" E CUNHA DE FIXACAO | C39: UN | D39: CR | E39: 2,21 | G39: 2.21 | H39: Sinapi 39131
A40: 394 | B40: ABRACADEIRA EM ACO PARA AMARRACAO DE ELETRODUTOS, TIPO D, COM 1 1/2" E PARAFUSO DE FIXACAO | C40: UN | D40: CR | E40: 2,24 | G40: 2.24 | H40: Sinapi 394
A41: 39130 | B41: ABRACADEIRA EM ACO PARA AMARRACAO DE ELETRODUTOS, TIPO D, COM 1 1/4" E CUNHA DE FIXACAO | C41: UN | D41: CR | E41: 2,01 | G41: 2.01 | H41: Sinapi 39130
A42: 395 | B42: ABRACADEIRA EM ACO PARA AMARRACAO DE ELETRODUTOS, TIPO D, COM 1 1/4" E PARAFUSO DE FIXACAO | C42: UN | D42: CR | E42: 2,15 | G42: 2.15 | H42: Sinapi 395
A43: 39127 | B43: ABRACADEIRA EM ACO PARA AMARRACAO DE ELETRODUTOS, TIPO D, COM 1/2" E CUNHA DE FIXACAO | C43: UN | D43: CR | E43: 1,06 | G43: 1.06 | H43: Sinapi 39127
A44: 392 | B44: ABRACADEIRA EM ACO PARA AMARRACAO DE ELETRODUTOS, TIPO D, COM 1/2" E PARAFUSO DE FIXACAO | C44: UN | D44: CR | E44: 1,09 | G44: 1.09 | H44: Sinapi 392
A45: 39129 | B45: ABRACADEIRA EM ACO PARA AMARRACAO DE ELETRODUTOS, TIPO D, COM 1" E CUNHA DE FIXACAO | C45: UN | D45: CR | E45: 1,24 | G45: 1.24 | H45: Sinapi 39129
A46: 393 | B46: ABRACADEIRA EM ACO PARA AMARRACAO DE ELETRODUTOS, TIPO D, COM 1" E PARAFUSO DE FIXACAO | C46: UN | D46: C | E46: 1,30 | G46: 1.3 | H46: Sinapi 393
A47: 39133 | B47: ABRACADEIRA EM ACO PARA AMARRACAO DE ELETRODUTOS, TIPO D, COM 2 1/2" E CUNHA DE FIXACAO | C47: UN | D47: CR | E47: 2,90 | G47: 2.9 | H47: Sinapi 39133
A48: 397 | B48: ABRACADEIRA EM ACO PARA AMARRACAO DE ELETRODUTOS, TIPO D, COM 2 1/2" E PARAFUSO DE FIXACAO | C48: UN | D48: CR | E48: 3,20 | G48: 3.2 | H48: Sinapi 397
A49: 39132 | B49: ABRACADEIRA EM ACO PARA AMARRACAO DE ELETRODUTOS, TIPO D, COM 2" E CUNHA DE FIXACAO | C49: UN | D49: CR | E49: 2,32 | G49: 2.32 | H49: Sinapi 39132
A50: 396 | B50: ABRACADEIRA EM ACO PARA AMARRACAO DE ELETRODUTOS, TIPO D, COM 2" E PARAFUSO DE FIXACAO | C50: UN | D50: CR | E50: 2,48 | G50: 2.48 | H50: Sinapi 396
A51: 39135 | B51: ABRACADEIRA EM ACO PARA AMARRACAO DE ELETRODUTOS, TIPO D, COM 3 1/2" E CUNHA DE FIXACAO | C51: UN | D51: CR | E51: 4,64 | G51: 4.64 | H51: Sinapi 39135
A52: 39128 | B52: ABRACADEIRA EM ACO PARA AMARRACAO DE ELETRODUTOS, TIPO D, COM 3/4" E CUNHA DE FIXACAO | C52: UN | D52: CR | E52: 1,16 | G52: 1.16 | H52: Sinapi 39128
A53: 400 | B53: ABRACADEIRA EM ACO PARA AMARRACAO DE ELETRODUTOS, TIPO D, COM 3/4" E PARAFUSO DE FIXACAO | C53: UN | D53: CR | E53: 1,13 | G53: 1.13 | H53: Sinapi 400
A54: 39125 | B54: ABRACADEIRA EM ACO PARA AMARRACAO DE ELETRODUTOS, TIPO D, COM 3/8" E PARAFUSO DE FIXACAO | C54: UN | D54: CR | E54: 1,16 | G54: 1.16 | H54: Sinapi 39125
A55: 39134 | B55: ABRACADEIRA EM ACO PARA AMARRACAO DE ELETRODUTOS, TIPO D, COM 3" E CUNHA DE FIXACAO | C55: UN | D55: CR | E55: 3,87 | G55: 3.87 | H55: Sinapi 39134
A56: 398 | B56: ABRACADEIRA EM ACO PARA AMARRACAO DE ELETRODUTOS, TIPO D, COM 3" E PARAFUSO DE FIXACAO | C56: UN | D56: CR | E56: 3,56 | G56: 3.56 | H56: Sinapi 398
A57: 39126 | B57: ABRACADEIRA EM ACO PARA AMARRACAO DE ELETRODUTOS, TIPO D, COM 4" E CUNHA DE FIXACAO | C57: UN | D57: CR | E57: 5,22 | G57: 5.22 | H57: Sinapi 39126
A58: 399 | B58: ABRACADEIRA EM ACO PARA AMARRACAO DE ELETRODUTOS, TIPO D, COM 4" E PARAFUSO DE FIXACAO | C58: UN | D58: CR | E58: 4,60 | G58: 4.6 | H58: Sinapi 399
A59: 39158 | B59: ABRACADEIRA EM ACO PARA AMARRACAO DE ELETRODUTOS, TIPO ECONOMICA (GOTA), COM 8" | C59: UN | D59: CR | E59: 12,36 | G59: 12.36 | H59: Sinapi 39158
A60: 39141 | B60: ABRACADEIRA EM ACO PARA AMARRACAO DE ELETRODUTOS, TIPO U SIMPLES, COM 1 1/2" | C60: UN | D60: CR | E60: 0,89 | G60: 0.89 | H60: Sinapi 39141
A61: 39140 | B61: ABRACADEIRA EM ACO PARA AMARRACAO DE ELETRODUTOS, TIPO U SIMPLES, COM 1 1/4" | C61: UN | D61: CR | E61: 0,81 | G61: 0.81 | H61: Sinapi 39140
A62: 39137 | B62: ABRACADEIRA EM ACO PARA AMARRACAO DE ELETRODUTOS, TIPO U SIMPLES, COM 1/2" | C62: UN | D62: CR | E62: 0,47 | G62: 0.47 | H62: Sinapi 39137
A63: 39139 | B63: ABRACADEIRA EM ACO PARA AMARRACAO DE ELETRODUTOS, TIPO U SIMPLES, COM 1" | C63: UN | D63: CR | E63: 0,67 | G63: 0.67 | H63: Sinapi 39139
A64: 39143 | B64: ABRACADEIRA EM ACO PARA AMARRACAO DE ELETRODUTOS, TIPO U SIMPLES, COM 2 1/2" | C64: UN | D64: CR | E64: 1,85 | G64: 1.85 | H64: Sinapi 39143
A65: 39142 | B65: ABRACADEIRA EM ACO PARA AMARRACAO DE ELETRODUTOS, TIPO U SIMPLES, COM 2" | C65: UN | D65: CR | E65: 1,32 | G65: 1.32 | H65: Sinapi 39142
A66: 39138 | B66: ABRACADEIRA EM ACO PARA AMARRACAO DE ELETRODUTOS, TIPO U SIMPLES, COM 3/4" | C66: UN | D66: CR | E66: 0,49 | G66: 0.49 | H66: Sinapi 39138
A67: 39136 | B67: ABRACADEIRA EM ACO PARA AMARRACAO DE ELETRODUTOS, TIPO U SIMPLES, COM 3/8" | C67: UN | D67: CR | E67: 0,33 | G67: 0.33 | H67: Sinapi 39136
A68: 39144 | B68: ABRACADEIRA EM ACO PARA AMARRACAO DE ELETRODUTOS, TIPO U SIMPLES, COM 3" | C68: UN | D68: CR | E68: 2,15 | G68: 2.15 | H68: Sinapi 39144
A69: 39145 | B69: ABRACADEIRA EM ACO PARA AMARRACAO DE ELETRODUTOS, TIPO U SIMPLES, COM 4" | C69: UN | D69: CR | E69: 3,55 | G69: 3.55 | H69: Sinapi 39145
A70: 12615 | B70: ABRACADEIRA PVC, PARA CALHA PLUVIAL, DIAMETRO ENTRE 80 E 100 MM, PARA DRENAGEM PREDIAL | C70: UN | D70: AS | E70: 3,24 | G70: 3.24 | H70: Sinapi 12615
A71: 11927 | B71: ABRACADEIRA, GALVANIZADA/ZINCADA, ROSCA SEM FIM, PARAFUSO INOX, LARGURA FITA *12,6 A *14 MM, D = 2" A 2 1/2" | C71: UN | D71: CR | E71: 5,76 | G71: 5.76 | H71: Sinapi 11927
A72: 11928 | B72: ABRACADEIRA, GALVANIZADA/ZINCADA, ROSCA SEM FIM, PARAFUSO INOX, LARGURA FITA *12,6 A *14 MM, D = 3" A 3 3/4" | C72: UN | D72: CR | E72: 6,60 | G72: 6.6 | H72: Sinapi 11928
A73: 11929 | B73: ABRACADEIRA, GALVANIZADA/ZINCADA, ROSCA SEM FIM, PARAFUSO INOX, LARGURA FITA *12,6 A *14 MM, D = 4" A 4 3/4" | C73: UN | D73: CR | E73: 10,22 | G73: =IF(E73="","",E73+0) -> 10.22 | H73: =IF(G73="","",CONCATENATE("Sinapi ",A73)) -> Sinapi 11929
A74: 36801 | B74: ACABAMENTO CROMADO PARA REGISTRO PEQUENO, 1/2 " OU 3/4 " | C74: UN | D74: CR | E74: 20,27 | G74: 20.27 | H74: Sinapi 36801
A75: 36246 | B75: ACABAMENTO SIMPLES/CONVENCIONAL PARA FORRO PVC, TIPO "U" OU "C", COR BRANCA, COMPRIMENTO 6 M | C75: M | D75: CR | E75: 1,96 | G75: 1.96 | H75: Sinapi 36246
A76: 37600 | B76: ACESSORIO DE LIGACAO NAO ELETRICO PARA CARGAS EXPLOSIVAS, TUBO DE 6 M | C76: UN | D76: AS | E76: 59,58 | G76: 59.58 | H76: Sinapi 37600
A77: 37599 | B77: ACESSORIO INICIADOR NAO ELETRICO, TUBO DE 6 M, TEMPO DE RETARDO DE *160* MS | C77: UN | D77: AS | E77: 55,45 | G77: 55.45 | H77: Sinapi 37599
A78: 1 | B78: ACETILENO (RECARGA PARA CILINDRO DE CONJUNTO OXICORTE GRANDE) | C78: KG | D78: C | E78: 40,00 | G78: 40 | H78: Sinapi 1
A79: 3 | B79: ACIDO MURIATICO, DILUICAO 10% A 12% PARA USO EM LIMPEZA | C79: L | D79: CR | E79: 4,43 | G79: 4.43 | H79: Sinapi 3
A80: 43054 | B80: ACO CA-25, 10,0 MM, OU 12,5 MM, OU 16,0 MM, OU 20,0 MM, OU 25,0 MM, VERGALHAO | C80: KG | D80: CR | E80: 5,88 | G80: 5.88 | H80: Sinapi 43054
A81: 26 | B81: ACO CA-25, 10,0 MM, VERGALHAO | C81: KG | D81: CR | E81: 4,29 | G81: 4.29 | H81: Sinapi 26
A82: 20 | B82: ACO CA-25, 12,5 MM, VERGALHAO | C82: KG | D82: C | E82: 4,32 | G82: 4.32 | H82: Sinapi 20
A83: 21 | B83: ACO CA-25, 16,0 MM, VERGALHAO | C83: KG | D83: CR | E83: 4,32 | G83: 4.32 | H83: Sinapi 21
A84: 42403 | B84: ACO CA-25, 20,0 MM, BARRA DE TRANSFERENCIA | C84: KG | D84: CR | E84: 7,21 | G84: 7.21 | H84: Sinapi 42403
A85: 24 | B85: ACO CA-25, 20,0 MM, VERGALHAO | C85: KG | D85: CR | E85: 4,32 | G85: 4.32 | H85: Sinapi 24
A86: 42404 | B86: ACO CA-25, 25,0 MM, BARRA DE TRANSFERENCIA | C86: KG | D86: CR | E86: 7,17 | G86: 7.17 | H86: Sinapi 42404
A87: 25 | B87: ACO CA-25, 25,0 MM, VERGALHAO | C87: KG | D87: CR | E87: 4,32 | G87: 4.32 | H87: Sinapi 25
A88: 42405 | B88: ACO CA-25, 32,0 MM, BARRA DE TRANSFERENCIA | C88: KG | D88: CR | E88: 7,63 | G88: 7.63 | H88: Sinapi 42405
A89: 34341 | B89: ACO CA-25, 32,0 MM, VERGALHAO | C89: KG | D89: CR | E89: 6,62 | G89: 6.62 | H89: Sinapi 34341
A90: 43053 | B90: ACO CA-25, 6,3 MM OU 8,0 MM, VERGALHAO | C90: KG | D90: CR | E90: 5,25 | G90: 5.25 | H90: Sinapi 43053
A91: 22 | B91: ACO CA-25, 6,3 MM, VERGALHAO | C91: KG | D91: CR | E91: 4,62 | G91: 4.62 | H91: Sinapi 22
A92: 23 | B92: ACO CA-25, 8,0 MM, VERGALHAO | C92: KG | D92: CR | E92: 4,58 | G92: 4.58 | H92: Sinapi 23
A93: 43058 | B93: ACO CA-50, 10,0 MM, OU 12,5 MM, OU 16,0 MM, OU 20,0 MM, DOBRADO E CORTADO | C93: KG | D93: CR | E93: 5,44 | G93: 5.44 | H93: Sinapi 43058
A94: 34 | B94: ACO CA-50, 10,0 MM, VERGALHAO | C94: KG | D94: CR | E94: 5,47 | G94: 5.47 | H94: Sinapi 34
A95: 43055 | B95: ACO CA-50, 12,5 MM OU 16,0 MM, VERGALHAO | C95: KG | D95: C | E95: 4,74 | G95: 4.74 | H95: Sinapi 43055
A96: 31 | B96: ACO CA-50, 12,5 MM, VERGALHAO | C96: KG | D96: CR | E96: 4,74 | G96: 4.74 | H96: Sinapi 31
A97: 34443 | B97: ACO CA-50, 16 MM, DOBRADO E CORTADO | C97: KG | D97: CR | E97: 5,31 | G97: 5.31 | H97: Sinapi 34443
A98: 27 | B98: ACO CA-50, 16,0 MM, VERGALHAO | C98: KG | D98: C | E98: 4,74 | G98: 4.74 | H98: Sinapi 27
A99: 43056 | B99: ACO CA-50, 20,0 MM OU 25,0 MM, VERGALHAO | C99: KG | D99: CR | E99: 5,46 | G99: 5.46 | H99: Sinapi 43056
A100: 29 | B100: ACO CA-50, 20,0 MM, VERGALHAO | C100: KG | D100: CR | E100: 4,43 | G100: 4.43 | H100: Sinapi 29
A101: 28 | B101: ACO CA-50, 25,0 MM, VERGALHAO | C101: KG | D101: CR | E101: 5,12 | G101: 5.12 | H101: Sinapi 28
A102: 43057 | B102: ACO CA-50, 32,0 MM, VERGALHAO | C102: KG | D102: CR | E102: 6,00 | G102: 6 | H102: Sinapi 43057
A103: 34449 | B103: ACO CA-50, 6,3 MM, DOBRADO E CORTADO | C103: KG | D103: CR | E103: 6,42 | G103: 6.42 | H103: Sinapi 34449
A104: 32 | B104: ACO CA-50, 6,3 MM, VERGALHAO | C104: KG | D104: CR | E104: 5,77 | G104: 5.77 | H104: Sinapi 32
A105: 33 | B105: ACO CA-50, 8,0 MM, VERGALHAO | C105: KG | D105: CR | E105: 5,80 | G105: 5.8 | H105: Sinapi 33
A106: 43061 | B106: ACO CA-60, 4,2 MM OU 5,0 MM, DOBRADO E CORTADO | C106: KG | D106: CR | E106: 5,42 | G106: 5.42 | H106: Sinapi 43061
A107: 43059 | B107: ACO CA-60, 4,2 MM, OU 5,0 MM, OU 6,0 MM, OU 7,0 MM, VERGALHAO | C107: KG | D107: CR | E107: 5,18 | G107: 5.18 | H107: Sinapi 43059
A108: 36 | B108: ACO CA-60, 4,2 MM, VERGALHAO | C108: KG | D108: CR | E108: 4,94 | G108: 4.94 | H108: Sinapi 36
A109: 39 | B109: ACO CA-60, 5,0 MM, VERGALHAO | C109: KG | D109: CR | E109: 4,94 | G109: 4.94 | H109: Sinapi 39
A110: 43062 | B110: ACO CA-60, 6,0 MM OU 7,0 MM, DOBRADO E CORTADO | C110: KG | D110: CR | E110: 5,74 | G110: 5.74 | H110: Sinapi 43062
A111: 43060 | B111: ACO CA-60, 8,0 MM OU 9,5 MM, VERGALHAO | C111: KG | D111: CR | E111: 4,51 | G111: 4.51 | H111: Sinapi 43060
A112: 20063 | B112: ACOPLAMENTO DE CONDUTOR PLUVIAL, EM PVC, DIAMETRO ENTRE 80 E 100 MM, PARA DRENAGEM PREDIAL | C112: UN | D112: AS | E112: 3,22 | G112: 3.22 | H112: Sinapi 20063
A113: 40410 | B113: ACOPLAMENTO RIGIDO EM FERRO FUNDIDO PARA SISTEMA DE TUBULACAO RANHURADA, DN 50 MM (2") | C113: UN | D113: AS | E113: 13,65 | G113: 13.65 | H113: Sinapi 40410
A114: 40411 | B114: ACOPLAMENTO RIGIDO EM FERRO FUNDIDO PARA SISTEMA DE TUBULACAO RANHURADA, DN 65 MM (2 1/2") | C114: UN | D114: AS | E114: 14,81 | G114: 14.81 | H114: Sinapi 40411
A115: 40412 | B115: ACOPLAMENTO RIGIDO EM FERRO FUNDIDO PARA SISTEMA DE TUBULACAO RANHURADA, DN 80 MM (3") | C115: UN | D115: AS | E115: 16,62 | G115: 16.62 | H115: Sinapi 40412
A116: 38838 | B116: ADAPTADOR DE COBRE PARA TUBULACAO PEX, DN 16 X 15 MM | C116: UN | D116: AS | E116: 6,78 | G116: 6.78 | H116: Sinapi 38838
A117: 38839 | B117: ADAPTADOR DE COBRE PARA TUBULACAO PEX, DN 20 X 22 MM | C117: UN | D117: AS | E117: 7,98 | G117: 7.98 | H117: Sinapi 38839
A118: 55 | B118: ADAPTADOR DE COMPRESSAO EM POLIPROPILENO (PP), PARA TUBO EM PEAD, 20 MM X 1/2", PARA LIGACAO PREDIAL DE AGUA (NTS 179) | C118: UN | D118: AS | E118: 3,20 | G118: 3.2 | H118: Sinapi 55
A119: 61 | B119: ADAPTADOR DE COMPRESSAO EM POLIPROPILENO (PP), PARA TUBO EM PEAD, 20 MM X 3/4", PARA LIGACAO PREDIAL DE AGUA (NTS 179) | C119: UN | D119: AS | E119: 3,02 | G119: 3.02 | H119: Sinapi 61
A120: 62 | B120: ADAPTADOR DE COMPRESSAO EM POLIPROPILENO (PP), PARA TUBO EM PEAD, 32 MM X 1", PARA LIGACAO PREDIAL DE AGUA (NTS 179) | C120: UN | D120: AS | E120: 6,27 | G120: 6.27 | H120: Sinapi 62
A121: 77 | B121: ADAPTADOR PVC PARA SIFAO METALICO, SOLDAVEL, COM ANEL BORRACHA (JE), 40 MM X 1 1/2" | C121: UN | D121: CR | E121: 0,84 | G121: 0.84 | H121: Sinapi 77
A122: 76 | B122: ADAPTADOR PVC PARA SIFAO, ROSCAVEL, 40 MM X 1 1/4" | C122: UN | D122: CR | E122: 0,86 | G122: 0.86 | H122: Sinapi 76
A123: 67 | B123: ADAPTADOR PVC ROSCAVEL, COM FLANGES E ANEL DE VEDACAO, 1/2", PARA CAIXA D' AGUA | C123: UN | D123: CR | E123: 8,27 | G123: 8.27 | H123: Sinapi 67
A124: 71 | B124: ADAPTADOR PVC ROSCAVEL, COM FLANGES E ANEL DE VEDACAO, 1", PARA CAIXA D' AGUA | C124: UN | D124: CR | E124: 15,20 | G124: 15.2 | H124: Sinapi 71
A125: 73 | B125: ADAPTADOR PVC ROSCAVEL, COM FLANGES E ANEL DE VEDACAO, 3/4", PARA CAIXA D' AGUA | C125: UN | D125: CR | E125: 11,35 | G125: 11.35 | H125: Sinapi 73
A126: 103 | B126: ADAPTADOR PVC SOLDAVEL CURTO COM BOLSA E ROSCA, 110 MM X 4", PARA AGUA FRIA | C126: UN | D126: CR | E126: 33,76 | G126: 33.76 | H126: Sinapi 103
A127: 107 | B127: ADAPTADOR PVC SOLDAVEL CURTO COM BOLSA E ROSCA, 20 MM X 1/2", PARA AGUA FRIA | C127: UN | D127: CR | E127: 0,53 | G127: 0.53 | H127: Sinapi 107
A128: 65 | B128: ADAPTADOR PVC SOLDAVEL CURTO COM BOLSA E ROSCA, 25 MM X 3/4", PARA AGUA FRIA | C128: UN | D128: CR | E128: 0,65 | G128: 0.65 | H128: Sinapi 65
A129: 108 | B129: ADAPTADOR PVC SOLDAVEL CURTO COM BOLSA E ROSCA, 32 MM X 1", PARA AGUA FRIA | C129: UN | D129: CR | E129: 1,35 | G129: 1.35 | H129: Sinapi 108
A130: 110 | B130: ADAPTADOR PVC SOLDAVEL CURTO COM BOLSA E ROSCA, 40 MM X 1 1/2", PARA AGUA FRIA | C130: UN | D130: CR | E130: 5,21 | G130: 5.21 | H130: Sinapi 110
A131: 109 | B131: ADAPTADOR PVC SOLDAVEL CURTO COM BOLSA E ROSCA, 40 MM X 1 1/4", PARA AGUA FRIA | C131: UN | D131: CR | E131: 2,57 | G131: 2.57 | H131: Sinapi 109
A132: 111 | B132: ADAPTADOR PVC SOLDAVEL CURTO COM BOLSA E ROSCA, 50 MM X 1 1/4", PARA AGUA FRIA | C132: UN | D132: CR | E132: 6,01 | G132: 6.01 | H132: Sinapi 111
A133: 112 | B133: ADAPTADOR PVC SOLDAVEL CURTO COM BOLSA E ROSCA, 50 MM X1 1/2", PARA AGUA FRIA | C133: UN | D133: CR | E133: 3,27 | G133: 3.27 | H133: Sinapi 112
A134: 113 | B134: ADAPTADOR PVC SOLDAVEL CURTO COM BOLSA E ROSCA, 60 MM X 2", PARA AGUA FRIA | C134: UN | D134: CR | E134: 8,88 | G134: 8.88 | H134: Sinapi 113
A135: 104 | B135: ADAPTADOR PVC SOLDAVEL CURTO COM BOLSA E ROSCA, 75 MM X 2 1/2", PARA AGUA FRIA | C135: UN | D135: CR | E135: 12,91 | G135: 12.91 | H135: Sinapi 104
A136: 102 | B136: ADAPTADOR PVC SOLDAVEL CURTO COM BOLSA E ROSCA, 85 MM X 3", PARA AGUA FRIA | C136: UN | D136: CR | E136: 21,20 | G136: 21.2 | H136: Sinapi 102
A137: 95 | B137: ADAPTADOR PVC SOLDAVEL, COM FLANGE E ANEL DE VEDACAO, 20 MM X 1/2", PARA CAIXA D'AGUA | C137: UN | D137: CR | E137: 7,18 | G137: =IF(E137="","",E137+0) -> 7.18 | H137: =IF(G137="","",CONCATENATE("Sinapi ",A137)) -> Sinapi 95
A138: 96 | B138: ADAPTADOR PVC SOLDAVEL, COM FLANGE E ANEL DE VEDACAO, 25 MM X 3/4", PARA CAIXA D'AGUA | C138: UN | D138: CR | E138: 8,25 | G138: 8.25 | H138: Sinapi 96
A139: 97 | B139: ADAPTADOR PVC SOLDAVEL, COM FLANGE E ANEL DE VEDACAO, 32 MM X 1", PARA CAIXA D'AGUA | C139: UN | D139: CR | E139: 10,72 | G139: 10.72 | H139: Sinapi 97
A140: 98 | B140: ADAPTADOR PVC SOLDAVEL, COM FLANGE E ANEL DE VEDACAO, 40 MM X 1 1/4", PARA CAIXA D'AGUA | C140: UN | D140: CR | E140: 14,45 | G140: 14.45 | H140: Sinapi 98
A141: 99 | B141: ADAPTADOR PVC SOLDAVEL, COM FLANGE E ANEL DE VEDACAO, 50 MM X 1 1/2", PARA CAIXA D'AGUA | C141: UN | D141: CR | E141: 17,52 | G141: 17.52 | H141: Sinapi 99
A142: 100 | B142: ADAPTADOR PVC SOLDAVEL, COM FLANGES E ANEL DE VEDACAO, 60 MM X 2", PARA CAIXA D' AGUA | C142: UN | D142: CR | E142: 24,44 | G142: 24.44 | H142: Sinapi 100
A143: 75 | B143: ADAPTADOR PVC SOLDAVEL, COM FLANGES LIVRES, 110 MM X 4", PARA CAIXA D' AGUA | C143: UN | D143: CR | E143: 254,77 | G143: 254.77 | H143: Sinapi 75
A144: 114 | B144: ADAPTADOR PVC SOLDAVEL, COM FLANGES LIVRES, 25 MM X 3/4", PARA CAIXA D' AGUA | C144: UN | D144: CR | E144: 9,28 | G144: 9.28 | H144: Sinapi 114
A145: 68 | B145: ADAPTADOR PVC SOLDAVEL, COM FLANGES LIVRES, 32 MM X 1", PARA CAIXA D' AGUA | C145: UN | D145: CR | E145: 14,19 | G145: 14.19 | H145: Sinapi 68
A146: 86 | B146: ADAPTADOR PVC SOLDAVEL, COM FLANGES LIVRES, 40 MM X 1 1/4", PARA CAIXA D' AGUA | C146: UN | D146: CR | E146: 26,39 | G146: 26.39 | H146: Sinapi 86
A147: 66 | B147: ADAPTADOR PVC SOLDAVEL, COM FLANGES LIVRES, 50 MM X 1 1/2", PARA CAIXA D' AGUA | C147: UN | D147: CR | E147: 26,48 | G147: 26.48 | H147: Sinapi 66
A148: 69 | B148: ADAPTADOR PVC SOLDAVEL, COM FLANGES LIVRES, 60 MM X 2", PARA CAIXA D' AGUA | C148: UN | D148: CR | E148: 40,48 | G148: 40.48 | H148: Sinapi 69
A149: 83 | B149: ADAPTADOR PVC SOLDAVEL, COM FLANGES LIVRES, 75 MM X 2 1/2", PARA CAIXA D' AGUA | C149: UN | D149: CR | E149: 129,30 | G149: 129.3 | H149: Sinapi 83
A150: 74 | B150: ADAPTADOR PVC SOLDAVEL, COM FLANGES LIVRES, 85 MM X 3", PARA CAIXA D' AGUA | C150: UN | D150: CR | E150: 180,51 | G150: 180.51 | H150: Sinapi 74
A151: 106 | B151: ADAPTADOR PVC SOLDAVEL, LONGO, COM FLANGE LIVRE, 110 MM X 4", PARA CAIXA D' AGUA | C151: UN | D151: CR | E151: 274,23 | G151: 274.23 | H151: Sinapi 106
A152: 87 | B152: ADAPTADOR PVC SOLDAVEL, LONGO, COM FLANGE LIVRE, 25 MM X 3/4", PARA CAIXA D' AGUA | C152: UN | D152: CR | E152: 13,03 | G152: 13.03 | H152: Sinapi 87
A153: 88 | B153: ADAPTADOR PVC SOLDAVEL, LONGO, COM FLANGE LIVRE, 32 MM X 1", PARA CAIXA D' AGUA | C153: UN | D153: CR | E153: 14,54 | G153: 14.54 | H153: Sinapi 88
A154: 89 | B154: ADAPTADOR PVC SOLDAVEL, LONGO, COM FLANGE LIVRE, 40 MM X 1 1/4", PARA CAIXA D' AGUA | C154: UN | D154: CR | E154: 21,51 | G154: 21.51 | H154: Sinapi 89
A155: 90 | B155: ADAPTADOR PVC SOLDAVEL, LONGO, COM FLANGE LIVRE, 50 MM X 1 1/2", PARA CAIXA D' AGUA | C155: UN | D155: CR | E155: 24,64 | G155: 24.64 | H155: Sinapi 90
A156: 81 | B156: ADAPTADOR PVC SOLDAVEL, LONGO, COM FLANGE LIVRE, 60 MM X 2", PARA CAIXA D' AGUA | C156: UN | D156: CR | E156: 42,15 | G156: 42.15 | H156: Sinapi 81
A157: 82 | B157: ADAPTADOR PVC SOLDAVEL, LONGO, COM FLANGE LIVRE, 75 MM X 2 1/2", PARA CAIXA D' AGUA | C157: UN | D157: CR | E157: 163,62 | G157: 163.62 | H157: Sinapi 82
A158: 105 | B158: ADAPTADOR PVC SOLDAVEL, LONGO, COM FLANGE LIVRE, 85 MM X 3", PARA CAIXA D' AGUA | C158: UN | D158: CR | E158: 191,56 | G158: 191.56 | H158: Sinapi 105
A159: 60 | B159: ADAPTADOR PVC, COM REGISTRO, PARA PEAD, 20 MM X 3/4", PARA LIGACAO PREDIAL DE AGUA | C159: UN | D159: AS | E159: 4,15 | G159: 4.15 | H159: Sinapi 60
A160: 72 | B160: ADAPTADOR PVC, ROSCAVEL, COM FLANGES E ANEL DE VEDACAO, 1 1/2", PARA CAIXA D'AGUA | C160: UN | D160: CR | E160: 25,76 | G160: 25.76 | H160: Sinapi 72
A161: 70 | B161: ADAPTADOR PVC, ROSCAVEL, COM FLANGES E ANEL DE VEDACAO, 1 1/4", PARA CAIXA D' AGUA | C161: UN | D161: CR | E161: 21,55 | G161: 21.55 | H161: Sinapi 70
A162: 85 | B162: ADAPTADOR PVC, ROSCAVEL, COM FLANGES E ANEL DE VEDACAO, 2", PARA CAIXA D' AGUA | C162: UN | D162: CR | E162: 31,27 | G162: 31.27 | H162: Sinapi 85
A163: 84 | B163: ADAPTADOR PVC, ROSCAVEL, PARA VALVULA PIA OU LAVATORIO, 40 MM | C163: UN | D163: CR | E163: 0,36 | G163: 0.36 | H163: Sinapi 84
A164: 37997 | B164: ADAPTADOR, CPVC, SOLDAVEL, 15 MM, PARA AGUA QUENTE | C164: UN | D164: CR | E164: 3,18 | G164: 3.18 | H164: Sinapi 37997
A165: 37998 | B165: ADAPTADOR, CPVC, SOLDAVEL, 22 MM, PARA AGUA QUENTE | C165: UN | D165: CR | E165: 3,30 | G165: 3.3 | H165: Sinapi 37998
A166: 10899 | B166: ADAPTADOR, EM LATAO, ENGATE RAPIDO 2 1/2" X ROSCA INTERNA 5 FIOS 2 1/2", PARA INSTALACAO PREDIAL DE COMBATE A INCENDIO | C166: UN | D166: CR | E166: 43,80 | G166: 43.8 | H166: Sinapi 10899
A167: 10900 | B167: ADAPTADOR, EM LATAO, ENGATE RAPIDO1 1/2" X ROSCA INTERNA 5 FIOS 2 1/2", PARA INSTALACAO PREDIAL DE COMBATE A INCENDIO | C167: UN | D167: CR | E167: 34,28 | G167: 34.28 | H167: Sinapi 10900
A168: 46 | B168: ADAPTADOR, PVC PBA, BOLSA/ROSCA, JE, DN 75 / DE 85 MM | C168: UN | D168: AS | E168: 32,98 | G168: 32.98 | H168: Sinapi 46
A169: 51 | B169: ADAPTADOR, PVC PBA, A BOLSA DEFOFO, JE, DN 100 / DE 110 MM | C169: UN | D169: AS | E169: 90,98 | G169: 90.98 | H169: Sinapi 51
A170: 12863 | B170: ADAPTADOR, PVC PBA, A BOLSA DEFOFO, JE, DN 50 / DE 60 MM | C170: UN | D170: AS | E170: 20,95 | G170: 20.95 | H170: Sinapi 12863
A171: 50 | B171: ADAPTADOR, PVC PBA, A BOLSA DEFOFO, JE, DN 75 / DE 85 MM | C171: UN | D171: AS | E171: 47,51 | G171: 47.51 | H171: Sinapi 50
A172: 47 | B172: ADAPTADOR, PVC PBA, BOLSA/ROSCA, JE, DN 100 / DE 110 MM | C172: UN | D172: AS | E172: 56,39 | G172: 56.39 | H172: Sinapi 47
A173: 48 | B173: ADAPTADOR, PVC PBA, BOLSA/ROSCA, JE, DN 50 / DE 60 MM | C173: UN | D173: AS | E173: 14,71 | G173: 14.71 | H173: Sinapi 48
A174: 52 | B174: ADAPTADOR, PVC PBA, PONTA/ROSCA, JE, DN 50 / DE 60 MM | C174: UN | D174: AS | E174: 11,17 | G174: 11.17 | H174: Sinapi 52
A175: 43 | B175: ADAPTADOR, PVC PBA, PONTA/ROSCA, JE, DN 75 / DE 85 MM | C175: UN | D175: AS | E175: 37,71 | G175: 37.71 | H175: Sinapi 43
A176: 4791 | B176: ADESIVO ACRILICO/COLA DE CONTATO | C176: KG | D176: CR | E176: 24,95 | G176: 24.95 | H176: Sinapi 4791
A177: 157 | B177: ADESIVO ESTRUTURAL A BASE DE RESINA EPOXI PARA INJECAO EM TRINCAS, BICOMPONENTE, BAIXA VISCOSIDADE | C177: KG | D177: CR | E177: 108,24 | G177: 108.24 | H177: Sinapi 157
A178: 156 | B178: ADESIVO ESTRUTURAL A BASE DE RESINA EPOXI, BICOMPONENTE, FLUIDO | C178: KG | D178: CR | E178: 38,54 | G178: 38.54 | H178: Sinapi 156
A179: 131 | B179: ADESIVO ESTRUTURAL A BASE DE RESINA EPOXI, BICOMPONENTE, PASTOSO (TIXOTROPICO) | C179: KG | D179: CR | E179: 32,96 | G179: 32.96 | H179: Sinapi 131
A180: 39719 | B180: ADESIVO LIQUIDO A BASE DE RESINAS PARA COLAGEM DE ESPUMA DE ISOLAMENTO TERMICO FLEXIVEL | C180: L | D180: CR | E180: 74,76 | G180: 74.76 | H180: Sinapi 39719
A181: 21114 | B181: ADESIVO PARA TUBOS CPVC, *75* G | C181: UN | D181: CR | E181: 16,02 | G181: 16.02 | H181: Sinapi 21114
A182: 119 | B182: ADESIVO PLASTICO PARA PVC, BISNAGA COM 75 GR | C182: UN | D182: C | E182: 6,32 | G182: 6.32 | H182: Sinapi 119
A183: 20080 | B183: ADESIVO PLASTICO PARA PVC, FRASCO COM 175 GR | C183: UN | D183: CR | E183: 18,12 | G183: 18.12 | H183: Sinapi 20080
A184: 122 | B184: ADESIVO PLASTICO PARA PVC, FRASCO COM 850 GR | C184: UN | D184: CR | E184: 57,09 | G184: 57.09 | H184: Sinapi 122
A185: 3410 | B185: ADESIVO/COLA PARA EPS (ISOPOR) E OUTROS MATERIAIS | C185: KG | D185: AS | E185: 19,60 | G185: 19.6 | H185: Sinapi 3410
A186: 124 | B186: ADITIVO ACELERADOR DE PEGA E ENDURECIMENTO PARA ARGAMASSAS E CONCRETOS, LIQUIDO E ISENTO DE CLORETOS | C186: L | D186: CR | E186: 12,71 | G186: 12.71 | H186: Sinapi 124
A187: 7334 | B187: ADITIVO ADESIVO LIQUIDO PARA ARGAMASSAS DE REVESTIMENTOS CIMENTICIOS | C187: L | D187: CR | E187: 11,01 | G187: 11.01 | H187: Sinapi 7334
A188: 123 | B188: ADITIVO IMPERMEABILIZANTE DE PEGA NORMAL PARA ARGAMASSAS E CONCRETOS SEM ARMACAO, LIQUIDO E ISENTO DE CLORETOS | C188: L | D188: C | E188: 5,20 | G188: 5.2 | H188: Sinapi 123
A189: 127 | B189: ADITIVO IMPERMEABILIZANTE DE PEGA ULTRARRAPIDA, LIQUIDO E ISENTO DE CLORETOS | C189: L | D189: CR | E189: 12,41 | G189: 12.41 | H189: Sinapi 127
A190: 41373 | B190: ADITIVO LIQUIDO IMPERMEABILIZANTE CRISTALIZANTE | C190: L | D190: CR | E190: 17,29 | G190: 17.29 | H190: Sinapi 41373
A191: 133 | B191: ADITIVO LIQUIDO INCORPORADOR DE AR PARA CONCRETO E ARGAMASSA, LIQUIDO E ISENTO DE CLORETOS | C191: L | D191: CR | E191: 5,15 | G191: 5.15 | H191: Sinapi 133
A192: 37538 | B192: ADITIVO PLASTIFICANTE E ESTABILIZADOR PARA ARGAMASSAS DE ASSENTAMENTO E REBOCO | C192: 18L | D192: CR | E192: 130,19 | G192: 130.19 | H192: Sinapi 37538
A193: 43617 | B193: ADITIVO PLASTIFICANTE E ESTABILIZADOR PARA ARGAMASSAS DE ASSENTAMENTO E REBOCO, LIQUIDO E ISENTO DE CLORETOS | C193: L | D193: CR | E193: 5,76 | G193: 5.76 | H193: Sinapi 43617
A194: 132 | B194: ADITIVO PLASTIFICANTE RETARDADOR DE PEGA E REDUTOR DE AGUA PARA CONCRETO, LIQUIDO E ISENTO DE CLORETOS | C194: L | D194: CR | E194: 5,34 | G194: 5.34 | H194: Sinapi 132
A195: 13408 | B195: ADITIVO SUPERPLASTIFICANTE DE PEGA NORMAL PARA CONCRETO (TAMBOR 200 KG) | C195: 200KG | D195: CR | E195: 2.050,97 | G195: 2050.97 | H195: Sinapi 13408
A196: 43618 | B196: ADITIVO SUPERPLASTIFICANTE DE PEGA NORMAL PARA CONCRETO, LIQUIDO E ISENTO DE CLORETOS | C196: KG | D196: CR | E196: 13,45 | G196: 13.45 | H196: Sinapi 43618
A197: 37476 | B197: ADUELA/GALERIA DE CONCRETO ARMADO, SECAO RETANGULAR 1.50 X 1.50 M (L X A), C = 1.00 M, E = 20 CM | C197: UN | D197: CR | E197: 1.924,95 | G197: 1924.95 | H197: Sinapi 37476
A198: 37478 | B198: ADUELA/GALERIA DE CONCRETO ARMADO, SECAO RETANGULAR 2.00 X 2.00 M (L X A), C = 1.00 M, E = 20 CM | C198: UN | D198: CR | E198: 2.723,29 | G198: 2723.29 | H198: Sinapi 37478
A199: 37477 | B199: ADUELA/GALERIA DE CONCRETO ARMADO, SECAO RETANGULAR 2.50 X 2.50 M (L X A), C = 1.00 M, E = 20 CM | C199: UN | D199: CR | E199: 3.332,34 | G199: 3332.34 | H199: Sinapi 37477
A200: 37479 | B200: ADUELA/GALERIA DE CONCRETO ARMADO, SECAO RETANGULAR 3.00 X 3.00 M (L X A), C = 1.00 M, E = 20 CM | C200: UN | D200: CR | E200: 4.166,72 | G200: 4166.72 | H200: Sinapi 37479
A201: 4319 | B201: AFASTADOR PARA TELHA DE FIBROCIMENTO CANALETE 90 OU KALHETAO | C201: UN | D201: CR | E201: 1,05 | G201: =IF(E201="","",E201+0) -> 1.05 | H201: =IF(G201="","",CONCATENATE("Sinapi ",A201)) -> Sinapi 4319
A202: 42409 | B202: AGENTE DE CURA, PROTETOR DA EVAPORACAO DA AGUA DE HIDRATACAO DO CONCRETO | C202: KG | D202: CR | E202: 8,47 | G202: 8.47 | H202: Sinapi 42409
... 5147 more rows

Sheet planilha auxiliar (hidden)
A1: Descrição do insumo | B1: Unidade | C1: Fonte do preço | D1: Preço unitário
A2: Anotação de Responsabilidade Técnica | B2: un | C2: Pini 1234 | D2: 0
